Workbook

Sheet Planilha I - Eletrico
D4: MINISTÉRIO DA INTEGRAÇÃO NACIONAL - MI
D5: COMPANIHA DE DESENVOLVIMENTO DOS VALES DO SÃO FRANCISCO E DO PARNAÍBA - CODEVASF
D6: ÁREA DE GESTÃO ADMINISTRATIVA E DE SUPORTE LOGÍSTICO
D7: Gerência de Patrimônio, Materiais e Serviços Auxiliares
B9: Planilha I
B10: Material de Manutenção Elétrica
B12: Unidade: | E12: Codevasf
B13: Item | C13: Código CATMAT | D13: Natureza Despesa | E13: Descrição Sucinta | F13: Unid. | G13: SEDE Consumo Anual Estimado | H13: 1ª SR Consumo Anual Estimado | I13: 2ª SR Consumo Anual Estimado | J13: 3ª SR Consumo Anual Estimado | K13: 4ª SR Consumo Anual Estimado | L13: 5ª SR Consumo Anual Estimado | M13: 6ª SR Consumo Anual Estimado | N13: 7ª SR Consumo Anual Estimado | O13: 8ª SR Consumo Anual Estimado | P13: Consumo Anual Geral | Q13: Preço unitário máximo | R13: Preço unitário máximo 2015 | S13: Preço Unitário REGISTRADO 2016 | T13: Valor Global | V13: SEDE Consumo Anual Estimado | W13: 1ª SR Consumo Anual Estimado | X13: 2ª SR Consumo Anual Estimado | Y13: 3ª SR Consumo Anual Estimado | Z13: 4ª SR Consumo Anual Estimado | AA13: 5ª SR Consumo Anual Estimado | AB13: 6ª SR Consumo Anual Estimado | AC13: 7ª SR Consumo Anual Estimado | AD13: 8ª SR Consumo Anual Estimado
B14: 1 | C14: BR0376467 | D14: 30.90.30-26 | E14: Adaptador, tensão nominal 127/220, de um lado tomada 2P+T E universal, do outro plugue, padrão brasileiro, branca, NBR 14136/2002, 690660. (Do padrão novo para o antigo) Marca: equivalente ou superior à PIAL. | F14: Unid. | G14: 240 | H14: 20 | I14: 0 | J14: 0 | K14: 10 | L14: 25 | M14: 20 | N14: 50 | O14: 0 | P14: =SUM(G14:O14) -> 365 | Q14: 9.8 | R14: 13 | S14: 3.87 | T14: =P14*Q14 -> 3577 | V14: =Q14*G14 -> 2352 | W14: =H14*Q14 -> 196 | X14: =I14*Q14 -> 0 | Y14: =J14*Q14 -> 0 | Z14: =K14*Q14 -> 98 | AA14: =L14*Q14 -> 245 | AB14: =M14*Q14 -> 196 | AC14: =N14*Q14 -> 490 | AD14: =O14*Q14 -> 0
B15: =B14+1 -> 2 | C15: BR0395739 | D15: 30.90.30-26 | E15: Adaptador, tensão nominal 127/220, tipo tomada 2P+T, corrente nominal 20, do padrão antigo para o novo, material termoplástico, normas técnicas NBR 14136, referência cód 64119, potência nominal 1905/3300 Marca: equivalente ou superior à PIAL. | F15: Unid. | G15: 240 | H15: 20 | I15: 15 | J15: 0 | K15: 10 | L15: 25 | M15: 20 | N15: 50 | O15: 0 | P15: =SUM(G15:O15) -> 380 | Q15: 9.4 | R15: 11.95 | S15: 9.9 | T15: =P15*Q15 -> 3572 | V15: =Q15*G15 -> 2256 | W15: =H15*Q15 -> 188 | X15: =I15*Q15 -> 141 | Y15: =J15*Q15 -> 0 | Z15: =K15*Q15 -> 94 | AA15: =L15*Q15 -> 235 | AB15: =M15*Q15 -> 188 | AC15: =N15*Q15 -> 470 | AD15: =O15*Q15 -> 0
B16: 3 | C16: BR0390141 | D16: 30.90.30-26 | E16: Cabo elétrico flexível, 2 x 4mm, 750V, PP, isolação interna PVC, anti-chama. Com certificação INMETRO / NBR 13249 Bobina com 500 metros Marca: equivalente ou superior à Pirelli. | F16: Metro | G16: 1000 | H16: 0 | I16: 1 | J16: 0 | K16: 300 | L16: 1000 | M16: 300 | N16: 10 | O16: 0 | P16: 2611 | Q16: 8.69 | R16: 7.9 | S16: 2.98 | T16: 22689.59 | V16: 8690 | W16: 0 | X16: 8.69 | Y16: 0 | Z16: 2607 | AA16: 8690 | AB16: 2607 | AC16: 86.9 | AD16: 0
B17: 4 | C17: BR0394031 | D17: 30.90.30-26 | E17: Cabo elétrico flexível, PP 2 X 1.50 mm, 750V, material do condutor cobre, anti-chama, com isolamento em pvc - CLORETO DE POLIVINILA Com certificação INMETRO / NBR 13249 Marca: equivalente ou superior à Megatron. | F17: Rolo 100 metros | G17: 8 | H17: 0 | I17: 5 | J17: 1 | K17: 3 | L17: 2 | M17: 4 | N17: 10 | O17: 0 | P17: 33 | Q17: 250.9 | R17: 259.05 | S17: 109 | T17: 8279.7 | V17: 2007.2 | W17: 0 | X17: 1254.5 | Y17: 250.9 | Z17: 752.7 | AA17: 501.8 | AB17: 1003.6 | AC17: 2509 | AD17: 0
B18: 5 | C18: BR0342939 | D18: 30.90.30-26 | E18: Cabo elétrico flexível, PP 2 X 2.50 mm, 750V, material do condutor cobre, com isolamento em pvc Com certificação INMETRO / NBR 13249 Marca: equivalente ou superior à Megatron. | F18: Rolo 100 metros | G18: 8 | H18: 0 | I18: 5 | J18: 1 | K18: 3 | L18: 2 | M18: 3 | N18: 10 | O18: 0 | P18: 32 | Q18: 359.9 | R18: 402.37 | S18: 174 | T18: 11516.8 | V18: 2879.2 | W18: 0 | X18: 1799.5 | Y18: 359.9 | Z18: 1079.7 | AA18: 719.8 | AB18: 1079.7 | AC18: 3599 | AD18: 0
B19: 6 | C19: BR0409524 | D19: 30.90.30-26 | E19: Cabo elétrico flexível, PP 3 X 1.50 mm, 750V, material do condutor cobre,anti-chama, com isolamento em pvc - Com certificação INMETRO / NBR 13249 Marca: equivalente ou superior à Megatron. | F19: Rolo 100 metros | G19: 8 | H19: 0 | I19: 5 | J19: 1 | K19: 3 | L19: 2 | M19: 3 | N19: 10 | O19: 0 | P19: 32 | Q19: 379.69 | R19: 377.59 | S19: 194 | T19: 12150.08 | V19: 3037.52 | W19: 0 | X19: 1898.45 | Y19: 379.69 | Z19: 1139.07 | AA19: 759.38 | AB19: 1139.07 | AC19: 3796.9 | AD19: 0
B20: 7 | C20: BR0332928 | D20: 30.90.30-26 | E20: Cabo elétrico flexível, PP 3 X 2.50 mm, 750V, material do condutor cobre, anti-chama, com isolamento em pvc Com certificação INMETRO / NBR 13249 Marca: equivalente ou superior à Pirelli. | F20: Rolo 100 metros | G20: 8 | H20: 0 | I20: 5 | J20: 4 | K20: 3 | L20: 2 | M20: 3 | N20: 10 | O20: 0 | P20: 35 | Q20: 419 | R20: 551.57 | S20: 248.7 | T20: 14665 | V20: 3352 | W20: 0 | X20: 2095 | Y20: 1676 | Z20: 1257 | AA20: 838 | AB20: 1257 | AC20: 4190 | AD20: 0
B21: 8 | C21: BR0129763 | D21: 30.90.30-17 | E21: Caixa de cabos par trançados categoria 6 Composto por condutores de cobre nu recozido de 0,52mm (24AWG) de diâmetro nominal, isolados com polietileno sólido. Condutores torcidos em pares e reunidos formando o núcleo de 4 pares. Núcleo revestido por uma capa de PVC retardante à chama. Na cor azul. Comprimento de 305 metros por caixa. | F21: Caixa com 305 metros | G21: 6 | H21: 5 | I21: 0 | J21: 0 | K21: 3 | L21: 2 | M21: 1 | N21: 10 | O21: 0 | P21: 27 | Q21: 882 | T21: 23814 | V21: 5292 | W21: 4410 | X21: 0 | Y21: 0 | Z21: 2646 | AA21: 1764 | AB21: 882 | AC21: 8820 | AD21: 0
B22: 9 | C22: BR0243116 | D22: 30.90.30-26 | E22: Caixa passagem, material PVC rígido, tipo embutir, comprimento 4 polegadas, largura 4 polegada, cor amarela. Marca: equivalente ou superior à Tigre.. | F22: Unid. | G22: 144 | H22: 0 | I22: 0 | J22: 0 | K22: 0 | L22: 20 | M22: 50 | N22: 50 | O22: 0 | P22: 264 | Q22: 4.52 | R22: 9.5 | S22: 3.98 | T22: 1193.28 | V22: 650.88 | W22: 0 | X22: 0 | Y22: 0 | Z22: 0 | AA22: 90.4 | AB22: 226 | AC22: 226 | AD22: 0
B23: 10 | C23: BR0041629 | D23: 30.90.30-26 | E23: Estabilizador de voltagem de 1000VA Capacidade de potencia nominal 1 KVA, tensão alimentação entrada 110/220 volts, tensão de alimentação de saída 115 v, com no mínimo 4 tomadas. Garantia de 1 ano. | F23: UN | G23: 180 | H23: 25 | I23: 10 | J23: 5 | K23: 0 | L23: 20 | M23: 8 | N23: 20 | O23: 0 | P23: 268 | Q23: 298 | R23: 330.87 | S23: 169.88 | T23: 79864 | V23: 53640 | W23: 7450 | X23: 2980 | Y23: 1490 | Z23: 0 | AA23: 5960 | AB23: 2384 | AC23: 5960 | AD23: 0
B24: 11 | C24: BR0231995 | D24: 30.90.30-26 | E24: Estabilizador de voltagem de 2000VA Capacidade de potencia nominal 2 KVA, tensão alimentação entrada 110/220 volts, tensão de alimentação de saída 115 v, com no mínimo 4 tomadas. Garantia de 1 ano. | F24: UN | G24: 60 | H24: 0 | I24: 10 | J24: 5 | K24: 0 | L24: 0 | M24: 4 | N24: 20 | O24: 0 | P24: 99 | Q24: 509 | R24: 397.46 | T24: 50391 | V24: 30540 | W24: 0 | X24: 5090 | Y24: 2545 | Z24: 0 | AA24: 0 | AB24: 2036 | AC24: 10180 | AD24: 0
B25: 12 | C25: BR0291227 | D25: 30.90.30-26 | E25: Filtro linha, tensão alimentação 110/220 V, potência máxima 1.000 W, quantidade saída 5 tomadas para computador, características adicionais cabo de força de aproximadamente 1,30 M | F25: Unid. | G25: 72 | H25: 30 | I25: 20 | J25: 10 | K25: 10 | L25: 20 | M25: 10 | N25: 100 | O25: 0 | P25: 272 | Q25: 26.6 | R25: 27.6 | S25: 20.9 | T25: 7235.2 | V25: 1915.2 | W25: 798 | X25: 532 | Y25: 266 | Z25: 266 | AA25: 532 | AB25: 266 | AC25: 2660 | AD25: 0
B26: 13 | C26: BR0239472 | D26: 30.90.30-26 | E26: Fio elétrico flexível, paralelo, bitola 2 x 1,5 mm, material condutor cobre, material isolamento PVC Marca: equivalente ou superior à Pirelli. | F26: Rolo 100 metros | G26: 12 | H26: 0 | I26: 5 | J26: 0 | K26: 3 | L26: 2 | M26: 6 | N26: 20 | O26: 0 | P26: 48 | Q26: 146 | R26: 175.9 | S26: 90.99 | T26: 7008 | V26: 1752 | W26: 0 | X26: 730 | Y26: 0 | Z26: 438 | AA26: 292 | AB26: 876 | AC26: 2920 | AD26: 0
B27: 14 | C27: BR0238853 | D27: 30.90.30-26 | E27: Fio elétrico flexível, paralelo, bitola 2 x 2,5 mm, material condutor cobre, material isolamento PVC Marca: equivalente ou superior à Pirelli. | F27: Rolo 100 metros | G27: 12 | H27: 0 | I27: 5 | J27: 0 | K27: 3 | L27: 2 | M27: 6 | N27: 20 | O27: 0 | P27: 48 | Q27: 214.62 | R27: 272.9 | S27: 150 | T27: 10301.76 | V27: 2575.44 | W27: 0 | X27: 1073.1 | Y27: 0 | Z27: 643.86 | AA27: 429.24 | AB27: 1287.72 | AC27: 4292.4 | AD27: 0
B28: 15 | C28: BR0224596 | D28: 30.90.30-26 | E28: Fio flexível, 2,5mm, para tensões de até 450/750 V., conforme NBR NM 247-3 (cores: Vermelho, preto, branco, azul, amarelo e verde) Marca: equivalente ou superior à Pirelli. | F28: Rolo 100 metros | G28: 180 | H28: 4 | I28: 5 | J28: 0 | K28: 3 | L28: 2 | M28: 6 | N28: 20 | O28: 0 | P28: 220 | Q28: 138.89 | R28: 115 | S28: 75.5 | T28: 30555.8 | V28: 25000.2 | W28: 555.56 | X28: 694.45 | Y28: 0 | Z28: 416.67 | AA28: 277.78 | AB28: 833.34 | AC28: 2777.8 | AD28: 0
B29: 16 | C29: BR224597 | D29: 30.90.30-26 | E29: Fio flexível, 4,0 mm, para tensões de até 450/750 V. Com certificação INMETRO / NBR 13249 (cores: Vermelho, preto, branco, azul e verde) Marca: equivalente ou superior à Pirelli. | F29: Rolo 100 metros | G29: 24 | H29: 2 | I29: 5 | J29: 0 | K29: 3 | L29: 2 | M29: 6 | N29: 20 | O29: 0 | P29: 62 | Q29: 195 | R29: 169.9 | S29: 99.49 | T29: 12090 | V29: 4680 | W29: 390 | X29: 975 | Y29: 0 | Z29: 585 | AA29: 390 | AB29: 1170 | AC29: 3900 | AD29: 0
B30: 17 | C30: BR0313047 | D30: 30.90.30-26 | E30: Fita isolante elétrica, material básico PVC anti-chama, cor preta, comprimento 20 m, largura 19 mm | F30: UN | G30: 120 | H30: 50 | I30: 16 | J30: 10 | K30: 15 | L30: 10 | M30: 50 | N30: 50 | O30: 0 | P30: 321 | Q30: 10.95 | R30: 12.8 | S30: 4.19 | T30: 3514.95 | V30: 1314 | W30: 547.5 | X30: 175.2 | Y30: 109.5 | Z30: 164.25 | AA30: 109.5 | AB30: 547.5 | AC30: 547.5 | AD30: 0
B31: 18 | C31: BR0013773 | D31: 33.90.30-26 | E31: Interruptor de embutir, duas sessões, conjugado com tomada | F31: unid. | G31: 20 | H31: 0 | I31: 40 | J31: 0 | K31: 0 | L31: 20 | M31: 10 | N31: 50 | O31: 0 | P31: 140 | Q31: 22.33 | T31: 3126.2 | V31: 446.6 | W31: 0 | X31: 893.2 | Y31: 0 | Z31: 0 | AA31: 446.6 | AB31: 223.3 | AC31: 1116.5 | AD31: 0
B32: 19 | C32: BR0013773 | D32: 33.90.30-26 | E32: Interruptor de embutir, três sessões | F32: unid. | G32: 20 | H32: 0 | I32: 10 | J32: 0 | K32: 0 | L32: 20 | M32: 10 | N32: 50 | O32: 0 | P32: 110 | Q32: 12 | T32: 1320 | V32: 240 | W32: 0 | X32: 120 | Y32: 0 | Z32: 0 | AA32: 240 | AB32: 120 | AC32: 600 | AD32: 0
B33: 20 | C33: BR0013773 | D33: 33.90.30-26 | E33: Interruptor de embutir, uma sessão | F33: unid. | G33: 20 | H33: 0 | I33: 40 | J33: 0 | K33: 0 | L33: 20 | M33: 10 | N33: 50 | O33: 0 | P33: 140 | Q33: 11 | T33: 1540 | V33: 220 | W33: 0 | X33: 440 | Y33: 0 | Z33: 0 | AA33: 220 | AB33: 110 | AC33: 550 | AD33: 0
B34: 21 | C34: BR0013773 | D34: 33.90.30-26 | E34: Interruptor de embutir, uma sessão, conjugado com tomada | F34: unid. | G34: 10 | H34: 0 | I34: 20 | J34: 0 | K34: 0 | L34: 20 | M34: 10 | N34: 50 | O34: 0 | P34: 110 | Q34: 17.83 | T34: 1961.3 | V34: 178.3 | W34: 0 | X34: 356.6 | Y34: 0 | Z34: 0 | AA34: 356.6 | AB34: 178.3 | AC34: 891.5 | AD34: 0
B35: 22 | C35: BR0212380 | D35: 30.90.30-26 | E35: Interruptor de sobrepor 01 seções completo, corrente nominal 10 A, composto de tampa, miolo, caixa padrão de sobrepor com 4 saidas de 20mm + 2 saidas de 40mm, parafuso, linha classe A - TIPO SISTEMA X. Marca: equivalente ou superior à Pial Legrand. | F35: Unid. | G35: 180 | H35: 0 | I35: 0 | J35: 10 | K35: 10 | L35: 20 | M35: 6 | N35: 50 | O35: 0 | P35: 276 | Q35: 20.84 | R35: 14.9 | S35: 3.29 | T35: 5751.84 | V35: 3751.2 | W35: 0 | X35: 0 | Y35: 208.4 | Z35: 208.4 | AA35: 416.8 | AB35: 125.04 | AC35: 1042 | AD35: 0
B36: 23 | C36: BR0212385 | D36: 30.90.30-26 | E36: Interruptor de sobrepor 02 seções completo, corrente nominal 10 A, composto de tampa, miolo, caixa padrao de sobrepor com 4 saidas de 20mm + 2 saidas de 40mm, parafuso, linha classe A - TIPO SISTEMA X. Marca: equivalente ou superior à Pial Legrand. | F36: Unid. | G36: 180 | H36: 0 | I36: 0 | J36: 10 | K36: 10 | L36: 20 | M36: 6 | N36: 50 | O36: 0 | P36: 276 | Q36: 33.7 | R36: 26.9 | S36: 11.79 | T36: 9301.2 | V36: 6066 | W36: 0 | X36: 0 | Y36: 337 | Z36: 337 | AA36: 674 | AB36: 202.2 | AC36: 1685 | AD36: 0
B37: 24 | C37: BR0212390 | D37: 30.90.30-26 | E37: Interruptor de sobrepor 03 seções completo, corrente nominal 10 A, composto de tampa, miolo, caixa padrão de sobrepor com 4 saidas de 20mm + 2 saidas de 40mm, parafuso, linha classe A - TIPO SISTEMA X. Marca: equivalente ou superior à Pial Legrand. | F37: Unid. | G37: 120 | H37: 0 | I37: 0 | J37: 10 | K37: 5 | L37: 20 | M37: 4 | N37: 50 | O37: 0 | P37: 209 | Q37: 32.9 | R37: 30.9 | S37: 6.99 | T37: 6876.1 | V37: 3948 | W37: 0 | X37: 0 | Y37: 329 | Z37: 164.5 | AA37: 658 | AB37: 131.6 | AC37: 1645 | AD37: 0
B38: 25 | C38: BR0261260 | D38: 30.90.30-26 | E38: Lâmpada fluorescente compacta, potência 15 W, comprimento 140 mm, diâmetro aproximadamente de 52 cm, tensão 220/240 V, características adicionais | F38: Unid. | G38: 180 | H38: 0 | I38: 0 | J38: 0 | K38: 0 | L38: 20 | M38: 10 | N38: 0 | O38: 0 | P38: 210 | Q38: 18.81 | R38: 17.5 | S38: 7.4 | T38: 3950.1 | V38: 3385.8 | W38: 0 | X38: 0 | Y38: 0 | Z38: 0 | AA38: 376.2 | AB38: 188.1 | AC38: 0 | AD38: 0
B39: 26 | C39: BR0245112 | D39: 30.90.30-26 | E39: Lâmpada fluorescente compacta, tipo base Edson-27, potência 30, tensão 220 | F39: Unid. | G39: 60 | H39: 0 | I39: 0 | J39: 0 | K39: 10 | L39: 20 | M39: 10 | N39: 0 | O39: 0 | P39: 100 | Q39: 14 | R39: 12.5 | S39: 11.7 | T39: 1400 | V39: 840 | W39: 0 | X39: 0 | Y39: 0 | Z39: 140 | AA39: 280 | AB39: 140 | AC39: 0 | AD39: 0
B40: 27 | C40: BR0349219 | D40: 30.90.30-26 | E40: Lâmpada fluorescente compacta, tipo base eletrônica, potência 45 W, tensão 220V | F40: UN | G40: 120 | H40: 0 | I40: 0 | J40: 0 | K40: 10 | L40: 20 | M40: 10 | N40: 200 | O40: 0 | P40: 360 | Q40: 49.6 | R40: 39.4 | S40: 21.7 | T40: 17856 | V40: 5952 | W40: 0 | X40: 0 | Y40: 0 | Z40: 496 | AA40: 992 | AB40: 496 | AC40: 9920 | AD40: 0
B41: 28 | C41: BR0234117 | D41: 30.90.30-26 | E41: Lâmpada Fluorescente HO 110, tubular, base bipino, potência 110 W, comprimento 2.400 mm, tensão alimentação 220V | F41: Unid. | G41: 840 | H41: 0 | I41: 0 | J41: 0 | K41: 0 | L41: 20 | M41: 10 | N41: 0 | O41: 0 | P41: 870 | Q41: 39 | R41: 14.8 | T41: 33930 | V41: 32760 | W41: 0 | X41: 0 | Y41: 0 | Z41: 0 | AA41: 780 | AB41: 390 | AC41: 0 | AD41: 0
B42: 29 | C42: BR0256287 | D42: 30.90.30-26 | E42: Lâmpada fluorescente tubular, base bipino, potência 20 W, tensão alimentação 220 V | F42: Unid. | G42: 840 | H42: 0 | I42: 125 | J42: 0 | K42: 0 | L42: 50 | M42: 10 | N42: 0 | O42: 0 | P42: 1025 | Q42: 7.42 | R42: 6.25 | S42: 5.32 | T42: 7605.5 | V42: 6232.8 | W42: 0 | X42: 927.5 | Y42: 0 | Z42: 0 | AA42: 371 | AB42: 74.2 | AC42: 0 | AD42: 0
B43: 30 | C43: BR0232988 | D43: 30.90.30-26 | E43: Lâmpada fluorescente, tubular, base bipino, potência 40 W, tensão alimentação 220 V | F43: Unid. | G43: 840 | H43: 400 | I43: 250 | J43: 0 | K43: 0 | L43: 100 | M43: 10 | N43: 20 | O43: 0 | P43: 1620 | Q43: 12.98 | R43: 7.77 | S43: 4.6 | T43: 21027.6 | V43: 10903.2 | W43: 5192 | X43: 3245 | Y43: 0 | Z43: 0 | AA43: 1298 | AB43: 129.8 | AC43: 259.6 | AD43: 0
B44: 31 | C44: BR0424263 | D44: 33.90.30-16 | E44: Lâmpada LED bulbo 10 W, 220 V | F44: unid. | H44: 0 | I44: 0 | J44: 150 | K44: 20 | L44: 20 | M44: 30 | N44: 0 | O44: 0 | P44: 220 | Q44: 21 | T44: 4620 | V44: 0 | W44: 0 | X44: 0 | Y44: 3150 | Z44: 420 | AA44: 420 | AB44: 630 | AC44: 0 | AD44: 0
B45: 32 | C45: BR0437541 | D45: 33.90.30-16 | E45: Lâmpada tubular LED 18W - 1200mm, 220 V | F45: unid. | H45: 50 | I45: 0 | J45: 150 | K45: 100 | L45: 50 | M45: 40 | N45: 300 | O45: 0 | P45: 690 | Q45: 43 | T45: 29670 | V45: 0 | W45: 2150 | X45: 0 | Y45: 6450 | Z45: 4300 | AA45: 2150 | AB45: 1720 | AC45: 12900 | AD45: 0
B46: 33 | C46: BR0424263 | D46: 33.90.30-16 | E46: Lâmpada tubular LED 38 W - 1200mm, 220 V | F46: unid. | H46: 50 | I46: 0 | J46: 20 | K46: 100 | L46: 50 | M46: 30 | N46: 0 | O46: 0 | P46: 250 | Q46: 57.33 | T46: 14332.5 | V46: 0 | W46: 2866.5 | X46: 0 | Y46: 1146.6 | Z46: 5733 | AA46: 2866.5 | AB46: 1719.9 | AC46: 0 | AD46: 0
B47: 34 | C47: BR0437543 | D47: 33.90.30-16 | E47: Lâmpada tubular LED 9W - 600 m, 220 V | F47: unid. | H47: 0 | I47: 0 | J47: 50 | K47: 10 | L47: 50 | M47: 30 | N47: 0 | O47: 0 | P47: 140 | Q47: 24 | T47: 3360 | V47: 0 | W47: 0 | X47: 0 | Y47: 1200 | Z47: 240 | AA47: 1200 | AB47: 720 | AC47: 0 | AD47: 0
B48: 35 | C48: BR0311346 | D48: 30.90.30-26 | E48: Lâmpada vapor mercúrio alta pressão 250W | F48: Unid. | G48: 60 | H48: 0 | I48: 0 | J48: 0 | K48: 0 | L48: 10 | M48: 10 | N48: 0 | O48: 0 | P48: 80 | Q48: 41.45 | R48: 37.5 | S48: 20.9 | T48: 3316 | V48: 2487 | W48: 0 | X48: 0 | Y48: 0 | Z48: 0 | AA48: 414.5 | AB48: 414.5 | AC48: 0 | AD48: 0
B49: 36 | C49: BR042323 | D49: 30.90.30-26 | E49: Lâmpada vapor metalica tubular de 440W | F49: Unid. | G49: 48 | H49: 0 | I49: 0 | J49: 0 | K49: 6 | L49: 10 | M49: 10 | N49: 0 | O49: 0 | P49: 74 | Q49: 81.06 | R49: 138.8 | S49: 98 | T49: 5998.44 | V49: 3890.88 | W49: 0 | X49: 0 | Y49: 0 | Z49: 486.36 | AA49: 810.6 | AB49: 810.6 | AC49: 0 | AD49: 0
B50: 37 | C50: BR041629 | D50: 30.90.30-26 | E50: NOBREAK Potência nominal 1400VA / 980 Watts (Fator de potência = 0,7). Tensão de entrada: 115V / 220V – Bivolt. Tensão de saída: 115V. Possui 2 baterias internas de 12V x 7Ah. Possui mínimo 5 tomadas de saída. Interativo com regulação ON LINE. Estabilizador com 4 estágios de regulação. Micro processado com tecnologia RISC de alta velocidade com memória Flash. Função TRUE RMS. Auto teste: ao ser ligado, o equipamento autoexecuta uma rotina de testes em seus circuitos internos. Gerenciador de Baterias para informar quando a bateria precisa ser substituída. Recarregador Strong Charger para permite a recarga das baterias mesmo com níveis muito baixos de carga. E conector do tipo engate rápido para expansão de autonomia. Inversor sincronizado com a rede (PLL). Forma de onda senoidal por aproximação: retangular PWM controle de largura e amplitude. Possui DC Start para permitir ser ligado na ausência de rede elétrica. Leds no painel frontal indicam as condições (status) do nobreak, como: modo rede, modo inversor/bateria, final de autonomia, subtensão, sobretensão, baterias em carga. Possui Alarme audiovisual intermitente para queda de rede e fim do tempo de autonomia. Possui Porta fusível externo com unidade reserva. | F50: unid. | G50: 23 | H50: 31 | I50: 11 | J50: 3 | K50: 1 | L50: 23 | M50: 2 | N50: 6 | O50: 0 | P50: 100 | Q50: 927.5 | T50: 92750 | V50: 21332.5 | W50: 28752.5 | X50: 10202.5 | Y50: 2782.5 | Z50: 927.5 | AA50: 21332.5 | AB50: 1855 | AC50: 5565 | AD50: 0
B51: 38 | C51: BR0331262 | D51: 30.90.30-26 | E51: [ Cota Exclusiva para ME e EPP em atendimento ao artigo 8º do Decreto nº 8.538, de 06/10/2015 ] NOBREAK Potência nominal 1400VA / 980 Watts (Fator de potência = 0,7). Tensão de entrada: 115V / 220V – Bivolt. Tensão de saída: 115V. Possui 2 baterias internas de 12V x 7Ah. Possui mínimo 5 tomadas de saída. Interativo com regulação ON LINE. Estabilizador com 4 estágios de regulação. Micro processado com tecnologia RISC de alta velocidade com memória Flash. Função TRUE RMS. Auto teste: ao ser ligado, o equipamento autoexecuta uma rotina de testes em seus circuitos internos. Gerenciador de Baterias para informar quando a bateria precisa ser substituída. Recarregador Strong Charger para permite a recarga das baterias mesmo com níveis muito baixos de carga. E conector do tipo engate rápido para expansão de autonomia. Inversor sincronizado com a rede (PLL). Forma de onda senoidal por aproximação: retangular PWM controle de largura e amplitude. Possui DC Start para permitir ser ligado na ausência de rede elétrica. Leds no painel frontal indicam as condições (status) do nobreak, como: modo rede, modo inversor/bateria, final de autonomia, subtensão, sobretensão, baterias em carga. Possui Alarme audiovisual intermitente para queda de rede e fim do tempo de autonomia. Possui Porta fusível externo com unidade reserva. | F51: unid. | G51: 7 | H51: 9 | I51: 4 | J51: 2 | K51: 0 | L51: 7 | M51: 1 | N51: 4 | O51: 0 | P51: =SUM(G51:O51) -> 34 | Q51: 927.5 | T51: =P51*Q51 -> 31535 | V51: 6492.5 | W51: 8347.5 | X51: 3710 | Y51: 1855 | Z51: 0 | AA51: 6492.5 | AB51: 927.5 | AC51: 3710 | AD51: 0
B52: 39 | C52: BR0399230 | D52: 30.90.30-26 | E52: Tomada, modelo universal 2P+T, formato corpo redondo, corrente nominal 15 A, tensão nominal 250, características adicionais caixa sobrepor 70mm X 70mm X 27mm, para instalação elétric, com parafusos. Linha classe A - TIPO SISTEMA X. Conforme norma ABNT NBR 14136 | F52: UN | G52: 360 | H52: 0 | I52: 0 | J52: 0 | K52: 20 | L52: 10 | M52: 20 | N52: 50 | O52: 0 | P52: 460 | Q52: 17.21 | R52: 17.55 | S52: 5.99 | T52: 7916.6 | V52: 6195.6 | W52: 0 | X52: 0 | Y52: 0 | Z52: 344.2 | AA52: 172.1 | AB52: 344.2 | AC52: 860.5 | AD52: 0
B53: 40 | C53: BR0240105 | D53: 30.90.30-26 | E53: Reator eletrônico, para lâmpada fluorescente HO (HIGH OUTPUT), 2 X 110 W, 110/220 V | F53: Unid. | G53: 240 | H53: 0 | I53: 0 | J53: 0 | K53: 0 | L53: 20 | M53: 10 | N53: 0 | O53: 0 | P53: 270 | Q53: 86.9 | R53: 39.5 | S53: 39.4 | T53: 23463 | V53: 20856 | W53: 0 | X53: 0 | Y53: 0 | Z53: 0 | AA53: 1738 | AB53: 869 | AC53: 0 | AD53: 0
B54: 41 | C54: BR0416227 | D54: 30.90.30-26 | E54: Reator externo, HQI de 400w. | F54: Unid. | G54: 24 | H54: 0 | I54: 0 | J54: 0 | K54: 2 | L54: 20 | M54: 10 | N54: 0 | O54: 0 | P54: 56 | Q54: 86.5 | R54: 86.21 | S54: 80 | T54: 4844 | V54: 2076 | W54: 0 | X54: 0 | Y54: 0 | Z54: 173 | AA54: 1730 | AB54: 865 | AC54: 0 | AD54: 0
B55: 42 | C55: BR0418057 | D55: 30.90.30-26 | E55: Reator lâmpada fluorescente, instantânea, eletrônico, potência nominal 20 W, tensão nominal 127/220 V, ALTO, quantidade 1 lâmpada, selo INMETRO garantia 2 anos, T10 | F55: Unid. | G55: 180 | H55: 0 | I55: 0 | J55: 0 | K55: 0 | L55: 20 | M55: 20 | N55: 0 | O55: 0 | P55: 220 | Q55: 19.78 | R55: 20.9 | S55: 15.05 | T55: 4351.6 | V55: 3560.4 | W55: 0 | X55: 0 | Y55: 0 | Z55: 0 | AA55: 395.6 | AB55: 395.6 | AC55: 0 | AD55: 0
B56: 43 | C56: BR0405815 | D56: 30.90.30-26 | E56: Reator lâmpada fluorescente, instantânea, eletrônico, potência nominal 20 W, tensão nominal 127/220 V, ALTO, quantidade 2 lâmpadas, selo INMETRO garantia 2 anos, T10 | F56: Unid. | G56: 340 | H56: 0 | I56: 50 | J56: 0 | K56: 0 | L56: 20 | M56: 20 | N56: 0 | O56: 0 | P56: 430 | Q56: 45.9 | R56: 24.9 | S56: 17.99 | T56: 19737 | V56: 15606 | W56: 0 | X56: 2295 | Y56: 0 | Z56: 0 | AA56: 918 | AB56: 918 | AC56: 0 | AD56: 0
B57: 44 | C57: BR0405814 | D57: 30.90.30-26 | E57: Reator lâmpada fluorescente, instantânea, eletrônico, potência nominal 40 W, tensão nominal 127/220 V, ALTO, quantidade 2 lâmpadas, selo INMETRO garantia 2 anos, T10 | F57: Unid. | G57: 340 | H57: 100 | I57: 100 | J57: 0 | K57: 0 | L57: 20 | M57: 20 | N57: 0 | O57: 0 | P57: 580 | Q57: 46.97 | R57: 22.9 | S57: 18.61 | T57: 27242.6 | V57: 15969.8 | W57: 4697 | X57: 4697 | Y57: 0 | Z57: 0 | AA57: 939.4 | AB57: 939.4 | AC57: 0 | AD57: 0
B58: 45 | C58: BR0207740 | D58: 30.90.30-26 | E58: Reator lâmpada vapor mercúrio, tipo uso interno, potência nominal lâmpada 250 watt, tensão nominal 220 V, frequência nominal 60 hz, fator potência baixo, NBR 5.125/80 | F58: Unid. | G58: 24 | H58: 0 | I58: 0 | J58: 0 | K58: 0 | L58: 20 | M58: 20 | N58: 0 | O58: 0 | P58: 64 | Q58: 54.13 | R58: 50.59 | S58: 40.25 | T58: 3464.32 | V58: 1299.12 | W58: 0 | X58: 0 | Y58: 0 | Z58: 0 | AA58: 1082.6 | AB58: 1082.6 | AC58: 0 | AD58: 0
B59: 46 | C59: BR0234935 | D59: 30.90.30-26 | E59: Receptáculo de rabicho para lâmpada fluorescente | F59: Unid. | G59: 360 | H59: 100 | I59: 0 | J59: 0 | K59: 50 | L59: 20 | M59: 40 | N59: 0 | O59: 0 | P59: 570 | Q59: 1.8 | R59: 1.05 | S59: 1.05 | T59: 1026 | V59: 648 | W59: 180 | X59: 0 | Y59: 0 | Z59: 90 | AA59: 36 | AB59: 72 | AC59: 0 | AD59: 0
B60: 47 | C60: BR0364621 | D60: 30.90.30-26 | E60: Soquete anti-vibratório para lâmpada fluorescente em geral EXCETO T5, braquilite, com Dimensões: altura: 6 cm, largura: 2,5 cm, profundidade: 2 cm | F60: Unid. | G60: 360 | H60: 100 | I60: 0 | J60: 0 | K60: 50 | L60: 50 | M60: 50 | N60: 0 | O60: 0 | P60: 610 | Q60: 2.5 | R60: 1.78 | S60: 1.67 | T60: 1525 | V60: 900 | W60: 250 | X60: 0 | Y60: 0 | Z60: 125 | AA60: 125 | AB60: 125 | AC60: 0 | AD60: 0
B62: Total Geral | T62: =SUM(T14:T61) -> 697216.06 | V62: =SUM(V14:V61) -> 328171.34 | W62: 66970.56 | X62: 46333.69 | Y62: 24535.49 | Z62: 26372.21 | AA62: 71766.4 | AB62: 34895.77 | AC62: 98170.6 | AD62: 0
V66: =SUM(V62:AD62) -> 697216.06

Sheet Planilha II - Hidráulico
D4: MINISTÉRIO DA INTEGRAÇÃO NACIONAL - MI
D5: COMPANIHA DE DESENVOLVIMENTO DOS VALES DO SÃO FRANCISCO E DO PARNAÍBA - CODEVASF
D6: ÁREA DE GESTÃO ADMINISTRATIVA E DE SUPORTE LOGÍSTICO
D7: Gerência de Patrimônio, Materiais e Serviços Auxiliares
B9: Planilha II
B10: Material de Manutenção Hidráulica
B12: Unidade: CODEVASF
B13: Item | C13: Código CATMAT | D13: Natureza Despesa | E13: Descrição Sucinta | F13: Unid. | G13: SEDE Consumo Anual Estimado | H13: 1ª SR Consumo Anual Estimado | I13: 2ª SR Consumo Anual Estimado | J13: 3ª SR Consumo Anual Estimado | K13: 4ª SR Consumo Anual Estimado | L13: 5ª SR Consumo Anual Estimado | M13: 6ª SR Consumo Anual Estimado | N13: 7ª SR Consumo Anual Estimado | O13: 8ª SR Consumo Anual Estimado | P13: Consumo Anual Geral | Q13: Preço unitário máximo | R13: Preço unitário máximo 2015 | S13: Preço unitário REGISTRADO 2016 | T13: Valor Global | V13: SEDE Consumo Anual Estimado | W13: 1ª SR Consumo Anual Estimado | X13: 2ª SR Consumo Anual Estimado | Y13: 3ª SR Consumo Anual Estimado | Z13: 4ª SR Consumo Anual Estimado | AA13: 5ª SR Consumo Anual Estimado | AB13: 6ª SR Consumo Anual Estimado | AC13: 7ª SR Consumo Anual Estimado | AD13: 8ª SR Consumo Anual Estimado
B14: ='Planilha I - Eletrico'!$B$60+1 -> 48 | C14: BR0235936 | D14: 30.90.30-26 | E14: Anticorrosivo, lubrificante/desengrax Ante/antioxidante/penetrante, spray Marca: equivalente ou superior à WD. | F14: UN | G14: 20 | H14: 30 | I14: 0 | J14: 5 | K14: 10 | L14: 2 | M14: 10 | N14: 5 | O14: 0 | P14: =SUM(G14:O14) -> 82 | Q14: 40 | R14: 45 | S14: 20 | T14: =P14*Q14 -> 3280 | V14: =Q14*G14 -> 800 | W14: =H14*Q14 -> 1200 | X14: =I14*Q14 -> 0 | Y14: =J14*Q14 -> 200 | Z14: =K14*Q14 -> 400 | AA14: =L14*Q14 -> 80 | AB14: =M14*Q14 -> 400 | AC14: =N14*Q14 -> 200 | AD14: =O14*Q14 -> 0
B15: =B14+1 -> 49 | C15: BR0258317 | D15: 33.90.30-24 | E15: Assento sanitário padrão, oval, almofadado, cor branco, tampo em prolipropileno | F15: unid. | G15: 2 | H15: 0 | I15: 40 | J15: 10 | K15: 6 | L15: 10 | M15: 10 | N15: 60 | O15: 0 | P15: =SUM(G15:O15) -> 138 | Q15: 91.5 | T15: =P15*Q15 -> 12627 | V15: =Q15*G15 -> 183 | W15: =H15*Q15 -> 0 | X15: =I15*Q15 -> 3660 | Y15: =J15*Q15 -> 915 | Z15: =K15*Q15 -> 549 | AA15: =L15*Q15 -> 915 | AB15: =M15*Q15 -> 915 | AC15: =N15*Q15 -> 5490 | AD15: =O15*Q15 -> 0
B16: =B15+1 -> 50 | C16: BR0288460 | D16: 30.90.30-26 | E16: Cascola (cola branca) galão | F16: LT | G16: 7 | H16: 0 | I16: 5 | J16: 5 | K16: 5 | L16: 4 | M16: 10 | N16: 10 | O16: 0 | P16: 46 | Q16: 25 | R16: 17.15 | S16: 17.15 | T16: 1150 | V16: 175 | W16: 0 | X16: 125 | Y16: 125 | Z16: 125 | AA16: 100 | AB16: 250 | AC16: 250 | AD16: 0
B17: 51 | C17: BR0038342 | D17: 30.90.30-24 | E17: Chuveiro elétrico, ducha eletrônica 220V 7500W, mangueira e ducha manual e suporte para fixação. Marca: equivalente ou superior à Lorenzetti. | F17: UN | G17: 5 | H17: 4 | I17: 0 | J17: 0 | K17: 0 | L17: 0 | M17: 3 | N17: 0 | O17: 0 | P17: 12 | Q17: 95.6 | R17: 84.9 | S17: 77.33 | T17: 1147.2 | V17: 478 | W17: 382.4 | X17: 0 | Y17: 0 | Z17: 0 | AA17: 0 | AB17: 286.8 | AC17: 0 | AD17: 0
B18: 52 | C18: BR0232601 | D18: 30.90.30-26 | E18: Cola adesiva para conexão hidráulica, acetona/metiletilcetona / tolual e resina pvc, prazo de validade de 1 ano após fabricação, tubos e conexões de pvc Marca: equivalente ou superior à Tigre. | F18: Frasco 175g | G18: 5 | H18: 0 | I18: 30 | J18: 0 | K18: 10 | L18: 4 | M18: 8 | N18: 10 | O18: 0 | P18: 67 | Q18: 23.7 | R18: 10 | S18: 5.07 | T18: 1587.9 | V18: 118.5 | W18: 0 | X18: 711 | Y18: 0 | Z18: 237 | AA18: 94.8 | AB18: 189.6 | AC18: 237 | AD18: 0
B19: 53 | C19: BR0243136 | D19: 30.90.30-24 | E19: Conexão em PVC , tipo joelho, de 20mm (1/2") Classe " A " Marca: equivalente ou superior à Tigre. | F19: UN | G19: 50 | H19: 0 | I19: 100 | J19: 0 | K19: 30 | L19: 20 | M19: 10 | N19: 20 | O19: 0 | P19: 230 | Q19: 4.3 | R19: 1.88 | S19: 1.46 | T19: 989 | V19: 215 | W19: 0 | X19: 430 | Y19: 0 | Z19: 129 | AA19: 86 | AB19: 43 | AC19: 86 | AD19: 0
B20: 54 | C20: BR0243137 | D20: 30.90.30-24 | E20: Conexão em PVC , tipo joelho, de 25mm (3/4") Classe " A " Marca: equivalente ou superior à Tigre. | F20: UN | G20: 50 | H20: 0 | I20: 100 | J20: 0 | K20: 30 | L20: 20 | M20: 10 | N20: 20 | O20: 0 | P20: 230 | Q20: 4.3 | R20: 2.37 | S20: 2.27 | T20: 989 | V20: 215 | W20: 0 | X20: 430 | Y20: 0 | Z20: 129 | AA20: 86 | AB20: 43 | AC20: 86 | AD20: 0
B21: 55 | C21: BR0346838 | D21: 30.90.30-24 | E21: Conexão em PVC , tipo T, de 20mm (1/2") Classe " A " Marca: equivalente ou superior à Tigre. | F21: UN | G21: 50 | H21: 0 | I21: 100 | J21: 0 | K21: 30 | L21: 20 | M21: 10 | N21: 20 | O21: 0 | P21: 230 | Q21: 4.3 | R21: 3.83 | S21: 0.41 | T21: 989 | V21: 215 | W21: 0 | X21: 430 | Y21: 0 | Z21: 129 | AA21: 86 | AB21: 43 | AC21: 86 | AD21: 0
B22: 56 | C22: BR0346837 | D22: 30.90.30-24 | E22: Conexão em PVC , tipo T, de 25mm (3/4") Classe " A " Marca: equivalente ou superior à Tigre. | F22: UN | G22: 50 | H22: 0 | I22: 100 | J22: 0 | K22: 30 | L22: 20 | M22: 10 | N22: 20 | O22: 0 | P22: 230 | Q22: 4.3 | R22: 3.3 | S22: 0.45 | T22: 989 | V22: 215 | W22: 0 | X22: 430 | Y22: 0 | Z22: 129 | AA22: 86 | AB22: 43 | AC22: 86 | AD22: 0
B23: 57 | C23: BR0295430 | D23: 30.90.30-24 | E23: Conexão em PVC, tipo curva raio longo, de 20mm (1/2") Classe " A " Marca: equivalente ou superior à Tigre. | F23: UN | G23: 50 | H23: 0 | I23: 100 | J23: 0 | K23: 15 | L23: 20 | M23: 10 | N23: 20 | O23: 0 | P23: 215 | Q23: 4.3 | R23: 2.6 | S23: 2.6 | T23: 924.5 | V23: 215 | W23: 0 | X23: 430 | Y23: 0 | Z23: 64.5 | AA23: 86 | AB23: 43 | AC23: 86 | AD23: 0
B24: 58 | C24: BR0290182 | D24: 30.90.30-24 | E24: Conexão em PVC, tipo curva raio longo, de 25mm (3/4") Classe " A " Marca: equivalente ou superior à Tigre. | F24: UN | G24: 50 | H24: 0 | I24: 100 | J24: 0 | K24: 15 | L24: 20 | M24: 10 | N24: 20 | O24: 0 | P24: 215 | Q24: 4.3 | R24: 2.3 | S24: 2.3 | T24: 924.5 | V24: 215 | W24: 0 | X24: 430 | Y24: 0 | Z24: 64.5 | AA24: 86 | AB24: 43 | AC24: 86 | AD24: 0
B25: 59 | C25: BR0039144 | D25: 30.90.30-24 | E25: Conexão em PVC, tipo luva de correr, de 20mm (1/2") Classe " A " Marca: equivalente ou superior à Tigre. | F25: UN | G25: 50 | H25: 0 | I25: 100 | J25: 0 | K25: 30 | L25: 20 | M25: 10 | N25: 20 | O25: 0 | P25: 230 | Q25: 9.5 | R25: 8.99 | S25: 8.49 | T25: 2185 | V25: 475 | W25: 0 | X25: 950 | Y25: 0 | Z25: 285 | AA25: 190 | AB25: 95 | AC25: 190 | AD25: 0
B26: 60 | C26: BR0227725 | D26: 30.90.30-24 | E26: Conexão em PVC, tipo luva de correr, de 25mm (3/4") Classe " A " Marca: equivalente ou superior à Tigre. | F26: UN | G26: 50 | H26: 0 | I26: 100 | J26: 0 | K26: 30 | L26: 20 | M26: 10 | N26: 20 | O26: 0 | P26: 230 | Q26: 16.69 | R26: 12.9 | S26: 6.99 | T26: 3838.7 | V26: 834.5 | W26: 0 | X26: 1669 | Y26: 0 | Z26: 500.7 | AA26: 333.8 | AB26: 166.9 | AC26: 333.8 | AD26: 0
B27: 61 | C27: BR0034525 | D27: 30.90.30-24 | E27: disco diamantado, diamante, 105 mm, 0 mm, segmentado, mármore | F27: UN | G27: 10 | H27: 0 | I27: 0 | J27: 10 | K27: 0 | L27: 0 | M27: 8 | N27: 0 | O27: 0 | P27: 28 | Q27: 15 | R27: 12.68 | S27: 9.99 | T27: 420 | V27: 150 | W27: 0 | X27: 0 | Y27: 150 | Z27: 0 | AA27: 0 | AB27: 120 | AC27: 0 | AD27: 0
B28: 62 | C28: BR0301441 | D28: 30.90.30-24 | E28: Engate hidráulico, aço inoxidável, 1/ 2 pol, 40 cm, instalações prediais água fria, com anel de vedação nas e xtremidades, rosca bsp ma | F28: UN | G28: 10 | H28: 0 | I28: 20 | J28: 0 | K28: 0 | L28: 5 | M28: 10 | N28: 10 | O28: 0 | P28: 55 | Q28: 17.91 | R28: 27.33 | S28: 15.44 | T28: 985.05 | V28: 179.1 | W28: 0 | X28: 358.2 | Y28: 0 | Z28: 0 | AA28: 89.55 | AB28: 179.1 | AC28: 179.1 | AD28: 0
B29: 63 | C29: BR00331527 | D29: 30.90.30-24 | E29: Fita antiderrapante, filme de poliéster com mineral abrasivo, largura 50mm, cor da fita preta, par utilização em escada, rampa, corredor, 20 m, adesivo de borracha e linear, à prova d'água/resina adesiva Caixa com um rolo de 5 metros Marca: equivalente ou superior à Safety-Walk 3M. | F29: Caixa com um rolo de 5 metros | G29: 10 | H29: 20 | I29: 5 | J29: 6 | K29: 10 | L29: 10 | M29: 10 | N29: 50 | O29: 0 | P29: 121 | Q29: 39 | R29: 77.1 | S29: 28.35 | T29: 4719 | V29: 390 | W29: 780 | X29: 195 | Y29: 234 | Z29: 390 | AA29: 390 | AB29: 390 | AC29: 1950 | AD29: 0
B30: 64 | C30: BR00319589 | D30: 30.90.30-24 | E30: Fita veda rosca 18mm X 50 M Embalagem Caixa de papelão Marca: equivalente ou superior à Tigre. | F30: UN | G30: 15 | H30: 30 | I30: 50 | J30: 4 | K30: 6 | L30: 10 | M30: 15 | N30: 50 | O30: 0 | P30: 180 | Q30: 13.9 | R30: 15 | S30: 5.99 | T30: 2502 | V30: 208.5 | W30: 417 | X30: 695 | Y30: 55.6 | Z30: 83.4 | AA30: 139 | AB30: 208.5 | AC30: 695 | AD30: 0
B31: 65 | C31: BR0214147 | D31: 30.90.30-24 | E31: Mangueira jardim, material PVC-traçado em náilon, diâmetro 1/2, espessura 2, pressão máxima 6 BAR., comprimento 100, cor azul / laranja / transparente | F31: Unidade com 100 Metros | G31: 100 | H31: 5 | I31: 5 | J31: 0 | K31: 2 | L31: 1 | M31: 2 | N31: 5 | O31: 0 | P31: 120 | Q31: 300 | R31: 4.18 | S31: 1.73 | T31: 36000 | V31: 30000 | W31: 1500 | X31: 1500 | Y31: 0 | Z31: 600 | AA31: 300 | AB31: 600 | AC31: 1500 | AD31: 0
B32: 66 | C32: BR0325013 | D32: 30.90.30-24 | E32: Massa calafetar, resina sintética, 1, 70 g/cm3, água, vedação - EMBALAGEM 350,00 G | F32: Embalagem 350,00 G | G32: 25 | H32: 0 | I32: 0 | J32: 0 | K32: 5 | L32: 5 | M32: 8 | N32: 10 | O32: 0 | P32: 53 | Q32: 14 | R32: 14 | S32: 9.89 | T32: 742 | V32: 350 | W32: 0 | X32: 0 | Y32: 0 | Z32: 70 | AA32: 70 | AB32: 112 | AC32: 140 | AD32: 0
B33: 67 | C33: BR0287999 | D33: 30.90.30-24 | E33: Porta-papel higiênico, plástico abs, 20 cm, 27 cm, para rolo de 300 a 400 m | F33: UN | G33: 100 | H33: 20 | I33: 30 | J33: 0 | K33: 6 | L33: 2 | M33: 8 | N33: 30 | O33: 0 | P33: 196 | Q33: 34 | R33: 28.8 | S33: 28.79 | T33: 6664 | V33: 3400 | W33: 680 | X33: 1020 | Y33: 0 | Z33: 204 | AA33: 68 | AB33: 272 | AC33: 1020 | AD33: 0
B34: 68 | C34: BR0330354 | D34: 30.90.30-24 | E34: Porta-toalha, plástico, cinza/branco, em parede com buchas expansíveis, banheiro, para papel com 2 ou 3 dobras, 27,5 cm, 36,5 cm, 12 cm | F34: UN | G34: 100 | H34: 20 | I34: 30 | J34: 0 | K34: 3 | L34: 2 | M34: 6 | N34: 20 | O34: 0 | P34: 181 | Q34: 36.82 | R34: 46.9 | S34: 46.65 | T34: 6664.42 | V34: 3682 | W34: 736.4 | X34: 1104.6 | Y34: 0 | Z34: 110.46 | AA34: 73.64 | AB34: 220.92 | AC34: 736.4 | AD34: 0
B35: 69 | C35: BR0350799 | D35: 33.90.30-21 | E35: Refil para filtro em carvão, para purificador de água marca/modelo IBBL FR 600 | F35: unid. | H35: 0 | I35: 15 | J35: 0 | K35: 0 | L35: 6 | M35: 10 | N35: 0 | O35: 0 | P35: 31 | Q35: 120 | T35: 3720 | V35: 0 | W35: 0 | X35: 1800 | Y35: 0 | Z35: 0 | AA35: 720 | AB35: 1200 | AC35: 0 | AD35: 0
B36: 70 | C36: BR0340311 | D36: 30.90.30-24 | E36: Refil, material carvão ativado, aplicação filtro SOFT BY EVEREST | F36: UN | G36: 30 | H36: 0 | I36: 0 | J36: 0 | K36: 0 | L36: 0 | M36: 2 | N36: 0 | O36: 0 | P36: 32 | Q36: 120 | R36: 115 | S36: 86.25 | T36: 3840 | V36: 3600 | W36: 0 | X36: 0 | Y36: 0 | Z36: 0 | AA36: 0 | AB36: 240 | AC36: 0 | AD36: 0
B37: 71 | C37: BR0053481 | D37: 30.90.30-24 | E37: Régua de alumino com 2 metors, para pedreiro | F37: UN | G37: 2 | H37: 0 | I37: 5 | J37: 0 | K37: 2 | L37: 2 | M37: 2 | N37: 0 | O37: 0 | P37: 13 | Q37: 43 | R37: 49.9 | S37: 48.08 | T37: 559 | V37: 86 | W37: 0 | X37: 215 | Y37: 0 | Z37: 86 | AA37: 86 | AB37: 86 | AC37: 0 | AD37: 0
B38: 72 | C38: BR0030651 | D38: 30.90.30-24 | E38: Removedor de tinta, galão de 5 (cinco) litros | F38: GL | G38: 10 | H38: 0 | I38: 5 | J38: 0 | K38: 5 | L38: 1 | M38: 2 | N38: 1 | O38: 0 | P38: 24 | Q38: 106.95 | R38: 24 | T38: 2566.8 | V38: 1069.5 | W38: 0 | X38: 534.75 | Y38: 0 | Z38: 534.75 | AA38: 106.95 | AB38: 213.9 | AC38: 106.95 | AD38: 0
B39: 73 | C39: BR0301252 | D39: 30.90.30-24 | E39: Reparo válvula hidráulica, metal cromado, encaixe, 1 1/4 pol, válvula descarga docol ri 484 ap, kit composto anel roscável e vedação/trava metal, descarga, 00022800 | F39: UN | G39: 15 | H39: 0 | I39: 0 | J39: 0 | K39: 0 | L39: 1 | M39: 5 | N39: 0 | O39: 0 | P39: 21 | Q39: 61.64 | R39: 82 | S39: 29 | T39: 1294.44 | V39: 924.6 | W39: 0 | X39: 0 | Y39: 0 | Z39: 0 | AA39: 61.64 | AB39: 308.2 | AC39: 0 | AD39: 0
B40: 74 | C40: BR0283959 | D40: 30.90.30-24 | E40: Reparo válvula hidráulica, plástico, válvula descarga hydra-deca, acionador, 2520 | F40: UN | G40: 15 | H40: 0 | I40: 0 | J40: 0 | K40: 0 | L40: 1 | M40: 5 | N40: 20 | O40: 0 | P40: 41 | Q40: 66.9 | R40: 41.24 | S40: 38.8 | T40: 2742.9 | V40: 1003.5 | W40: 0 | X40: 0 | Y40: 0 | Z40: 0 | AA40: 66.9 | AB40: 334.5 | AC40: 1338 | AD40: 0
B41: 75 | C41: BR0330355 | D41: 30.90.30-24 | E41: Saboneteira, plástico abs, policarbonato transparente alta resistência, 22 cm, 13 cm, 900 ml, antifurto atra vés buchas expansivas, banheiro, sabonete líquido/válvula dosadora 0,75 ml por acio, branca, 9,50 cm | F41: UN | G41: 30 | H41: 20 | I41: 30 | J41: 0 | K41: 3 | L41: 0 | M41: 3 | N41: 30 | O41: 0 | P41: 116 | Q41: 74.5 | R41: 29.3 | S41: 29.3 | T41: 8642 | V41: 2235 | W41: 1490 | X41: 2235 | Y41: 0 | Z41: 223.5 | AA41: 0 | AB41: 223.5 | AC41: 2235 | AD41: 0
B42: 76 | C42: BR0367204 | D42: 33.90.30-17 | E42: Spray para limpeza de contatos elétricos e eletrônicos (dielétrico) de secagem imediata; densidade: 0,660 – 0,670 com a função de remover os resíduos que prejudicam a condutividade nos contatos elétricos e eletrônicos, poeira e umidade e recuperar a condutividade nos contatos instantaneamente. | F42: unid. | G42: 5 | H42: 0 | I42: 0 | J42: 2 | K42: 6 | L42: 4 | M42: 5 | N42: 5 | O42: 0 | P42: 27 | Q42: 56.67 | T42: 1530.09 | V42: 283.35 | W42: 0 | X42: 0 | Y42: 113.34 | Z42: 340.02 | AA42: 226.68 | AB42: 283.35 | AC42: 283.35 | AD42: 0
B43: 77 | C43: BR0253944 | D43: 30.90.30-24 | E43: Torneira, aço inoxidável cromado, pi , 1/2 pol, bica móvel para bancada giratória,tipo pescoço de, bancada | F43: UN | G43: 10 | H43: 0 | I43: 15 | J43: 0 | K43: 10 | L43: 1 | M43: 5 | N43: 5 | O43: 0 | P43: 46 | Q43: 57.9 | R43: 226.38 | S43: 25.85 | T43: 2663.4 | V43: 579 | W43: 0 | X43: 868.5 | Y43: 0 | Z43: 579 | AA43: 57.9 | AB43: 289.5 | AC43: 289.5 | AD43: 0
B44: 78 | C44: BR0303691 | D44: 30.90.30-24 | E44: torneira, aço inoxidável, alavanca, 1/2 pol, cafeteira elétrica universal | F44: UN | G44: 12 | H44: 0 | I44: 0 | J44: 0 | K44: 0 | L44: 1 | M44: 5 | N44: 5 | O44: 0 | P44: 23 | Q44: 70 | R44: 70 | S44: 69.9 | T44: 1610 | V44: 840 | W44: 0 | X44: 0 | Y44: 0 | Z44: 0 | AA44: 70 | AB44: 350 | AC44: 350 | AD44: 0
B45: 79 | C45: BR0239640 | D45: 30.90.30-24 | E45: Torneira, material corpo metal, tipo lavatório, diâmetro 1/2 polegada, acabamento superficial cromado, características adicionais com temporizador | F45: UN | G45: 30 | H45: 0 | I45: 15 | J45: 0 | K45: 0 | L45: 1 | M45: 6 | N45: 50 | O45: 0 | P45: 102 | Q45: 293 | R45: 395 | S45: 52.66 | T45: 29886 | V45: 8790 | W45: 0 | X45: 4395 | Y45: 0 | Z45: 0 | AA45: 293 | AB45: 1758 | AC45: 14650 | AD45: 0
B46: 80 | C46: BR0075469 | D46: 30.90.30-24 | E46: Tubo PVC soldável, aplicação rede hidráulica e esgoto, cor branca, diâmetro nominal 100 mm, comprimento 6 mt, tipo leve, material pvc rígido Classe " A " Marca: equivalente ou superior à Tigre. | F46: UN | G46: 10 | H46: 0 | I46: 0 | J46: 0 | K46: 10 | L46: 2 | M46: 6 | N46: 10 | O46: 0 | P46: 38 | Q46: 65 | R46: 53.5 | T46: 2470 | V46: 650 | W46: 0 | X46: 0 | Y46: 0 | Z46: 650 | AA46: 130 | AB46: 390 | AC46: 650 | AD46: 0
B47: 81 | C47: BR0075469 | D47: 30.90.30-24 | E47: Tubo PVC soldável, hidráulica, marrom, 20 mm (1/2"), 6 m, 32 mm, 1,50 mm, 7,50 kgf/cm2 a 20°c Classe " A " Marca: equivalente ou superior à Tigre. | F47: UN | G47: 10 | H47: 0 | I47: 0 | J47: 0 | K47: 20 | L47: 2 | M47: 10 | N47: 10 | O47: 0 | P47: 52 | Q47: 25 | R47: 15.99 | T47: 1300 | V47: 250 | W47: 0 | X47: 0 | Y47: 0 | Z47: 500 | AA47: 50 | AB47: 250 | AC47: 250 | AD47: 0
B48: 82 | C48: BR0075469 | D48: 30.90.30-24 | E48: Tubo PVC soldável, hidráulica, marrom, 25 mm (3/4"), 6 m, 32 mm, 1,70 mm, 7,50 kgf/cm2 a 20°c Classe " A " Marca: equivalente ou superior à Tigre. | F48: UN | G48: 10 | H48: 0 | I48: 0 | J48: 0 | K48: 20 | L48: 2 | M48: 10 | N48: 10 | O48: 0 | P48: 52 | Q48: 27.6 | R48: 16.7 | T48: 1435.2 | V48: 276 | W48: 0 | X48: 0 | Y48: 0 | Z48: 552 | AA48: 55.2 | AB48: 276 | AC48: 276 | AD48: 0
B49: 83 | C49: BR0075469 | D49: 30.90.30-24 | E49: Tubo PVC soldável, hidráulica, marrom, 40 mm, 6 m, 40 mm, 2,40 mm, 7,50 kgf/cm2 a 20°c Classe " A " Marca: equivalente ou superior à Tigre. | F49: UN | G49: 10 | H49: 0 | I49: 0 | J49: 0 | K49: 10 | L49: 2 | M49: 10 | N49: 10 | O49: 0 | P49: 42 | Q49: 63.25 | R49: 65.9 | T49: 2656.5 | V49: 632.5 | W49: 0 | X49: 0 | Y49: 0 | Z49: 632.5 | AA49: 126.5 | AB49: 632.5 | AC49: 632.5 | AD49: 0
B50: 84 | C50: BR0075469 | D50: 30.90.30-24 | E50: Tubo PVC soldável, hidráulica, marrom, 50 mm, 6 m, 50 mm, 3 mm, 7,50 kgf/cm2 a 20°c Classe " A " Marca: equivalente ou superior à Tigre. | F50: UN | G50: 10 | H50: 0 | I50: 0 | J50: 0 | K50: 10 | L50: 2 | M50: 10 | N50: 10 | O50: 0 | P50: 42 | Q50: 77.31 | R50: 69.9 | T50: 3247.02 | V50: 773.1 | W50: 0 | X50: 0 | Y50: 0 | Z50: 773.1 | AA50: 154.62 | AB50: 773.1 | AC50: 773.1 | AD50: 0
B52: Total Geral | T52: =SUM(T14:T51) -> 160480.62 | V52: =SUM(V4:V51) -> 64706.15 | W52: 7185.8 | X52: 24616.05 | Y52: 1792.94 | Z52: 9070.43 | AA52: 5565.18 | AB52: 12272.37 | AC52: 35271.7 | AD52: 0
V53: =SUM(V14:V51) -> 64706.15 | W53: =SUM(W14:W51) -> 7185.8

Sheet Planilha III - Macenaria-Ferram
D4: MINISTÉRIO DA INTEGRAÇÃO NACIONAL - MI
D5: COMPANIHA DE DESENVOLVIMENTO DOS VALES DO SÃO FRANCISCO E DO PARNAÍBA - CODEVASF
D6: ÁREA DE GESTÃO ADMINISTRATIVA E DE SUPORTE LOGÍSTICO
D7: Gerência de Patrimônio, Materiais e Serviços Auxiliares
B9: Planilha III
B10: Material de Manutenção de Marcenaria / Ferramentas
B12: Unidade: CODEVASF
B13: Item | C13: Código CATMAT | D13: Natureza Despesa | E13: Descrição Sucinta | F13: Unid. | G13: SEDE Consumo Anual Estimado | H13: 1ª SR Consumo Anual Estimado | I13: 2ª SR Consumo Anual Estimado | J13: 3ª SR Consumo Anual Estimado | K13: 4ª SR Consumo Anual Estimado | L13: 5ª SR Consumo Anual Estimado | M13: 6ª SR Consumo Anual Estimado | N13: 7ª SR Consumo Anual Estimado | O13: 8ª SR Consumo Anual Estimado | P13: Consumo Anual Geral | Q13: Preço unitário máximo 2017 | R13: Preço unitário máximo 2015 | S13: Preço unitário REGISTRADO 2016 | T13: Valor Global | V13: SEDE Consumo Anual Estimado | W13: 1ª SR Consumo Anual Estimado | X13: 2ª SR Consumo Anual Estimado | Y13: 3ª SR Consumo Anual Estimado | Z13: 4ª SR Consumo Anual Estimado | AA13: 5ª SR Consumo Anual Estimado | AB13: 6ª SR Consumo Anual Estimado | AC13: 7ª SR Consumo Anual Estimado | AD13: 8ª SR Consumo Anual Estimado
B14: ='Planilha II - Hidráulico'!$B$50+1 -> 85 | C14: BR0251453 | D14: 30.90.30-26 | E14: Alicate universal, forjado em aço cromo vanádio, profissional, cabo isolado, corte temperado por indução, 200 mm, corte arames duros e corda de piano Marca: equivalente ou superior à Gedore. | F14: UN | G14: 8 | H14: 5 | I14: 5 | J14: 2 | K14: 5 | L14: 2 | M14: 2 | N14: 0 | O14: 0 | P14: =SUM(G14:O14) -> 29 | Q14: 31.8 | R14: 31.8 | S14: 25 | T14: =P14*Q14 -> 922.2 | V14: =Q14*G14 -> 254.4 | W14: =H14*Q14 -> 159 | X14: =I14*Q14 -> 159 | Y14: =J14*Q14 -> 63.6 | Z14: =K14*Q14 -> 159 | AA14: =L14*Q14 -> 63.6 | AB14: =M14*Q14 -> 63.6 | AC14: =N14*Q14 -> 0 | AD14: =O14*Q14 -> 0
B15: =B14+1 -> 86 | C15: BR0311040 | D15: 30.90.30-26 | E15: Arco serra, lâmina serra standard 12 polegadas, material cabo polipropileno, tratamento superficial niquelado, tamanho 12 polegadas, tipo regulável, características adicionais com cabo fechado e profundidade de corte de 90 mm. Marca: equivalente ou superior à Starrett. | F15: UN | G15: 10 | H15: 5 | I15: 5 | J15: 1 | K15: 2 | L15: 2 | M15: 3 | N15: 0 | O15: 0 | P15: =SUM(G15:O15) -> 28 | Q15: 31.8 | R15: 26.15 | S15: 14.45 | T15: =P15*Q15 -> 890.4 | V15: =Q15*G15 -> 318 | W15: =H15*Q15 -> 159 | X15: =I15*Q15 -> 159 | Y15: =J15*Q15 -> 31.8 | Z15: =K15*Q15 -> 63.6 | AA15: =L15*Q15 -> 63.6 | AB15: =M15*Q15 -> 95.4 | AC15: =N15*Q15 -> 0 | AD15: =O15*Q15 -> 0
B16: =B15+1 -> 87 | C16: BR0277412 | D16: 30.90.30-26 | E16: Broca wídia, material corpo aço, material ponta wídia, tamanho longa, diâmetro 10 mm | F16: UN | G16: 10 | H16: 10 | I16: 5 | J16: 1 | K16: 5 | L16: 3 | M16: 5 | N16: 0 | O16: 0 | P16: 39 | Q16: 6.67 | R16: 4.52 | T16: 260.13 | V16: 66.7 | W16: 66.7 | X16: 33.35 | Y16: 6.67 | Z16: 33.35 | AA16: 20.01 | AB16: 33.35 | AC16: 0 | AD16: 0
B17: 88 | C17: BR0266375 | D17: 30.90.30-26 | E17: Broca wídia, material corpo aço, material ponta wídia, tamanho média, diâmetro 6 mm | F17: UN | G17: 10 | H17: 10 | I17: 5 | J17: 1 | K17: 5 | L17: 3 | M17: 5 | N17: 0 | O17: 0 | P17: 39 | Q17: 4.99 | R17: 5.21 | S17: 1.5 | T17: 194.61 | V17: 49.9 | W17: 49.9 | X17: 24.95 | Y17: 4.99 | Z17: 24.95 | AA17: 14.97 | AB17: 24.95 | AC17: 0 | AD17: 0
B18: 89 | C18: BR0266376 | D18: 30.90.30-26 | E18: Broca wídia, material corpo aço, material ponta wídia, tamanho média, diâmetro 8 mm | F18: UN | G18: 10 | H18: 10 | I18: 5 | J18: 1 | K18: 5 | L18: 3 | M18: 5 | N18: 0 | O18: 0 | P18: 39 | Q18: 3.26 | R18: 3.21 | S18: 3.18 | T18: 127.14 | V18: 32.6 | W18: 32.6 | X18: 16.3 | Y18: 3.26 | Z18: 16.3 | AA18: 9.78 | AB18: 16.3 | AC18: 0 | AD18: 0
B19: 90 | C19: BR0277410 | D19: 30.90.30-26 | E19: Broca wídia, para concreto, material corpo aço, material ponta wídia, tamanho curta, diâmetro 4 mm | F19: UN | G19: 10 | H19: 10 | I19: 5 | J19: 1 | K19: 5 | L19: 3 | M19: 5 | N19: 0 | O19: 0 | P19: 39 | Q19: 3.71 | R19: 3.1 | S19: 2.62 | T19: 144.69 | V19: 37.1 | W19: 37.1 | X19: 18.55 | Y19: 3.71 | Z19: 18.55 | AA19: 11.13 | AB19: 18.55 | AC19: 0 | AD19: 0
B20: 91 | C20: BR0227316 | E20: Broca, aço rápido, 9/64 pol, médio, cilíndrica | F20: UN | G20: 30 | H20: 10 | I20: 5 | J20: 5 | K20: 5 | L20: 3 | M20: 5 | N20: 0 | O20: 0 | P20: 63 | Q20: 3.82 | R20: 4.8 | S20: 1.45 | T20: 240.66 | V20: 114.6 | W20: 38.2 | X20: 19.1 | Y20: 19.1 | Z20: 19.1 | AA20: 11.46 | AB20: 19.1 | AC20: 0 | AD20: 0
B21: 92 | C21: BR0284259 | D21: 30.90.30-26 | E21: Broca, material aço rápido, Comprimento total: 160mm, Comprimento útil: 100mm, aplicação martelete/concreto, componentes 7 brocas com diâmetro de 0,6mm; 0,8mm; 10mm; 12mm;, características adicionais tipo encaixe SDS Utilização em martelete Bosch GBH 2-24D | F21: Jogo com 7 unid. | G21: 3 | H21: 0 | I21: 5 | J21: 1 | K21: 1 | L21: 2 | M21: 1 | N21: 0 | O21: 0 | P21: 13 | Q21: 129.25 | R21: 52 | T21: 1680.25 | V21: 387.75 | W21: 0 | X21: 646.25 | Y21: 129.25 | Z21: 129.25 | AA21: 258.5 | AB21: 129.25 | AC21: 0 | AD21: 0
B22: 93 | C22: BR0243298 | D22: 30.90.30-26 | E22: Broca, material aço rápido, diâmetro S/4 mm, tamanho médio, tipo haste cilíndrica | F22: UN | G22: 20 | H22: 10 | I22: 5 | J22: 2 | K22: 5 | L22: 3 | M22: 5 | N22: 0 | O22: 0 | P22: 50 | Q22: 5.2 | R22: 3.64 | S22: 1.58 | T22: 260 | V22: 104 | W22: 52 | X22: 26 | Y22: 10.4 | Z22: 26 | AA22: 15.6 | AB22: 26 | AC22: 0 | AD22: 0
B23: 94 | C23: BR0242968 | D23: 30.90.30-26 | E23: Broca, material aço rápido, diâmetro S/6 mm, tamanho médio, tipo haste cilíndrica | F23: UN | G23: 20 | H23: 10 | I23: 5 | J23: 2 | K23: 5 | L23: 3 | M23: 5 | N23: 0 | O23: 0 | P23: 50 | Q23: 5 | R23: 6.5 | S23: 2.39 | T23: 250 | V23: 100 | W23: 50 | X23: 25 | Y23: 10 | Z23: 25 | AA23: 15 | AB23: 25 | AC23: 0 | AD23: 0
B24: 95 | C24: BR0359439 | D24: 30.90.30-26 | E24: Bucha de nylon tamanho S/10 | F24: UN | G24: 4000 | H24: 50 | I24: 100 | J24: 100 | K24: 50 | L24: 100 | M24: 100 | N24: 0 | O24: 0 | P24: 4500 | Q24: 0.99 | R24: 0.6 | S24: 0.04 | T24: 4455 | V24: 3960 | W24: 49.5 | X24: 99 | Y24: 99 | Z24: 49.5 | AA24: 99 | AB24: 99 | AC24: 0 | AD24: 0
B25: 96 | C25: BR0318019 | D25: 30.90.30-26 | E25: Bucha de nylon tamanho S/4 | F25: UN | G25: 4000 | H25: 50 | I25: 100 | J25: 0 | K25: 50 | L25: 100 | M25: 100 | N25: 0 | O25: 0 | P25: 4400 | Q25: 0.2 | R25: 0.2 | S25: 0.09 | T25: 880 | V25: 800 | W25: 10 | X25: 20 | Y25: 0 | Z25: 10 | AA25: 20 | AB25: 20 | AC25: 0 | AD25: 0
B26: 97 | C26: BR0249217 | D26: 30.90.30-26 | E26: Bucha de nylon tamanho S/6 | F26: UN | G26: 4000 | H26: 50 | I26: 100 | J26: 100 | K26: 50 | L26: 100 | M26: 100 | N26: 0 | O26: 0 | P26: 4500 | Q26: 0.18 | R26: 0.8 | S26: 0.02 | T26: 810 | V26: 720 | W26: 9 | X26: 18 | Y26: 18 | Z26: 9 | AA26: 18 | AB26: 18 | AC26: 0 | AD26: 0
B27: 98 | C27: BR0249218 | D27: 30.90.30-26 | E27: Bucha de nylon tamanho S/8 | F27: UN | G27: 4000 | H27: 50 | I27: 100 | J27: 200 | K27: 50 | L27: 100 | M27: 100 | N27: 0 | O27: 0 | P27: 4600 | Q27: 0.21 | R27: 0.5 | S27: 0.02 | T27: 966 | V27: 840 | W27: 10.5 | X27: 21 | Y27: 42 | Z27: 10.5 | AA27: 21 | AB27: 21 | AC27: 0 | AD27: 0
B28: 99 | C28: BR0010090 | D28: 33.90.30-28 | E28: Cadeado de 30mm, corpo de latão maciço | F28: unid. | G28: 0 | H28: 5 | I28: 50 | J28: 6 | K28: 2 | L28: 10 | M28: 5 | N28: 0 | O28: 0 | P28: 78 | Q28: 17.63 | T28: 1375.14 | V28: 0 | W28: 88.15 | X28: 881.5 | Y28: 105.78 | Z28: 35.26 | AA28: 176.3 | AB28: 88.15 | AC28: 0 | AD28: 0
B29: 100 | C29: BR0290095 | D29: 33.90.30-28 | E29: Cadeado de 40mm, corpo de latão maciço | F29: unid. | G29: 0 | H29: 0 | I29: 50 | J29: 0 | K29: 2 | L29: 10 | M29: 5 | N29: 0 | O29: 0 | P29: 67 | Q29: 22.67 | T29: 1518.89 | V29: 0 | W29: 0 | X29: 1133.5 | Y29: 0 | Z29: 45.34 | AA29: 226.7 | AB29: 113.35 | AC29: 0 | AD29: 0
B30: 101 | C30: BR0290095 | D30: 33.90.30-28 | E30: Cadeado de 45mm, corpo de latão maciço | F30: unid. | G30: 0 | H30: 0 | I30: 50 | J30: 0 | K30: 2 | L30: 10 | M30: 5 | N30: 0 | O30: 0 | P30: 67 | Q30: 23.33 | T30: 1563.11 | V30: 0 | W30: 0 | X30: 1166.5 | Y30: 0 | Z30: 46.66 | AA30: 233.3 | AB30: 116.65 | AC30: 0 | AD30: 0
B31: 102 | C31: BR0290095 | D31: 33.90.30-28 | E31: Cadeado de 50mm, corpo de latão maciço | F31: unid. | G31: 0 | H31: 5 | I31: 50 | J31: 0 | K31: 2 | L31: 10 | M31: 5 | N31: 0 | O31: 0 | P31: 72 | Q31: 27.67 | T31: 1992.24 | V31: 0 | W31: 138.35 | X31: 1383.5 | Y31: 0 | Z31: 55.34 | AA31: 276.7 | AB31: 138.35 | AC31: 0 | AD31: 0
B32: 103 | C32: BR0313078 | D32: 30.90.30-26 | E32: Cola, composição polivinil acetato- pva, cor branca, aplicação papel e madeira, características adicionais atóxica, tipo líquido | F32: Litro | G32: 5 | H32: 5 | I32: 0 | J32: 0 | K32: 10 | L32: 10 | M32: 5 | N32: 0 | O32: 0 | P32: =SUM(G32:O32) -> 35 | Q32: 16.33 | R32: 13.8 | S32: 13.8 | T32: 571.55 | V32: 81.65 | W32: 81.65 | X32: 0 | Y32: 0 | Z32: 163.3 | AA32: 163.3 | AB32: 81.65 | AC32: 0 | AD32: 0
B33: 104 | C33: BR0264064 | D33: 30.90.30-26 | E33: Jogo chave tipo halem, aço cromo vanádio, hexagonal, 9, manutenção equipamento mecânico, chaves medidas 1,5; 2; 2,5; 3; 4; 5; 6; 7 e 8mm, modelo "L", curto, fosfatiza | F33: UN | G33: 5 | H33: 3 | I33: 5 | J33: 1 | K33: 2 | L33: 1 | M33: 3 | N33: 0 | O33: 0 | P33: 20 | Q33: 40.81 | R33: 40.81 | S33: 33.99 | T33: 816.2 | V33: 204.05 | W33: 122.43 | X33: 204.05 | Y33: 40.81 | Z33: 81.62 | AA33: 40.81 | AB33: 122.43 | AC33: 0 | AD33: 0
B34: 105 | C34: BR0389282 | D34: 30.90.30-26 | E34: Jogo chaves fenda, aço cromo vanádio, chata e philips. Philips 1/64, 1/32, 5/64; Fendas 3/32,5/32,27/12/ pololegadas Cabo em plástico resistente, com ponta imantada | F34: UN | G34: 5 | H34: 3 | I34: 5 | J34: 1 | K34: 2 | L34: 1 | M34: 2 | N34: 0 | O34: 0 | P34: 19 | Q34: 96 | R34: 135 | S34: 134.9 | T34: 1824 | V34: 480 | W34: 288 | X34: 480 | Y34: 96 | Z34: 192 | AA34: 96 | AB34: 192 | AC34: 0 | AD34: 0
B35: 106 | C35: BR0032760 | D35: 33.90.30-24 | E35: Jogo de chave, de fenda, em aço cromo vanádio, bitolas 3x60, 4,5x80, 4,5x100, 6x150, 10x150 e 10x200 | F35: unid. | G35: 5 | H35: 1 | I35: 0 | J35: 1 | K35: 2 | L35: 1 | M35: 2 | N35: 0 | O35: 0 | P35: 12 | Q35: 75 | T35: 900 | V35: 375 | W35: 75 | X35: 0 | Y35: 75 | Z35: 150 | AA35: 75 | AB35: 150 | AC35: 0 | AD35: 0
B36: 107 | C36: BR0066397 | D36: 33.90.30-24 | E36: Jogo de chave, tipo allen, hexagonal, 11 peças, 1,5 a 10 mm' | F36: unid. | G36: 5 | H36: 1 | I36: 0 | J36: 1 | K36: 2 | L36: 1 | M36: 2 | N36: 0 | O36: 0 | P36: 12 | Q36: 116.33 | T36: 1395.96 | V36: 581.65 | W36: 116.33 | X36: 0 | Y36: 116.33 | Z36: 232.66 | AA36: 116.33 | AB36: 232.66 | AC36: 0 | AD36: 0
B37: 108 | C37: BR0245015 | D37: 33.90.30-24 | E37: Jogo de chave, tipo ponta phillips, em aço cromo vanádio, bitolas 3x60, 4,5x80, 4,5x100, 6x150, 10x150 e 10x200 | F37: unid. | G37: 5 | H37: 1 | I37: 0 | J37: 1 | K37: 2 | L37: 1 | M37: 2 | N37: 0 | O37: 0 | P37: 12 | Q37: 44 | T37: 528 | V37: 220 | W37: 44 | X37: 0 | Y37: 44 | Z37: 88 | AA37: 44 | AB37: 88 | AC37: 0 | AD37: 0
B38: 109 | C38: BR0302379 | D38: 30.90.30-26 | E38: Lâmina serra manual, aço rápido, 32 dentes por polegada, 1/2" pol, 300 mm Marca: equivalente ou superior à Starret. | F38: UN | G38: 10 | H38: 20 | I38: 15 | J38: 5 | K38: 5 | L38: 4 | M38: 5 | N38: 0 | O38: 0 | P38: 64 | Q38: 5 | R38: 5.55 | S38: 4.88 | T38: 320 | V38: 50 | W38: 100 | X38: 75 | Y38: 25 | Z38: 25 | AA38: 20 | AB38: 25 | AC38: 0 | AD38: 0
B39: 110 | C39: BR0010146 | D39: 30.90.30-26 | E39: Mola para porta (tipo coimbra) | F39: UN | G39: 12 | H39: 10 | I39: 20 | J39: 20 | K39: 3 | L39: 20 | M39: 4 | N39: 0 | O39: 0 | P39: 89 | Q39: 182 | R39: 1000 | S39: 95.77 | T39: 16198 | V39: 2184 | W39: 1820 | X39: 3640 | Y39: 3640 | Z39: 546 | AA39: 3640 | AB39: 728 | AC39: 0 | AD39: 0
B40: 111 | C40: BR0067601 | E40: Multímetro Digital com visor de LEDs com retro iluminação branca para trabalhar em áreas com pouca luminosidade, Todas as entradas devem estar protegidas de acordo com a CE, IEN61010-1, CAT III 600 V. Listados na UL, CSA, TÜV e VDE; Tensão máxima entre qualquer terminal e a terra de 600 V, Proteção contra picos de 6 kV, de acordo com IEC 61010-1 600 V CAT III, grau de poluição 2; Milivolts DC: Gama: 600,0 mV, Resolução:0,1 mV, Precisão: ± ([% da leitura] + [contagens]): 2,0% + 3; Volts DC Gama/Resolução: 6,000 V / 0,001 V,Gama/Resolução: 60,00 V / 0,01 V,Gama/Resolução: 600,00 V / 0,1 V,Precisão: ± ([% da leitura] + [contagens]): 0,5% + 2; Milivolts AC1 True RMS: Gama 600,0 mV,Resolução: 0,1 mV, Precisão: 1,0% + 3 (DC, 45 Hz a 500 Hz) 2,0% + 3 (500 Hz a 1 kHz);Volts AC1 True RMS: Gama/Resolução: 6,000 V / 0,001 V, Gama/Resolução: 60,00 V / 0,01 V,Gama/Resolução: 600,0 V / 0,1 V, Precisão:1,0% + 3 (DC, 45 Hz a 500 Hz) 2,0% + 3 (500 Hz a 1 kHz);Continuidade Gama: 600 Ω,Resolução: 1 Ω Precisão: Sinal sonoro ligado a <20 Ω, desligado a >250 Ω; detecta circuitos abertos ou curto-circuitos de 500 μs ou superiores; Ohms: Gama/Resolução:600,0 Ω / 0,1 Ω, Gama/Resolução: 6,000 kΩ / 0,001 kΩ, Gama/Resolução: 60,00 kΩ / 0,01 kΩ, Gama/Resolução:600,0 kΩ / 0,1 kΩ,Gama/Resolução: 6,000 MΩ / 0,001 MΩ,Precisão:0,9% + 1, Gama/Resolução: 40,00 MΩ / 0,01 MΩ, Precisão: 1,5% + 2; Ensaio de díodo: Gama/Resolução: 2,00 V / 0,001 V, Precisão: 0,9% + 2 Capacidade Gama/Resolução: 1000 nF / 1 nF, Gama/Resolução:10,00 μF / 0,01 μF, Gama/Resolução: 100,0 μF / 0,1 μF, Gama/Resolução: 9999 μF / 1 μF, Gama/Resolução: 100 μF a 1000 μF, Precisão: 1,9% + 2, Gama/Resolução: >1000 μF, Precisão: | F40: unid. | G40: 2 | H40: 1 | I40: 0 | J40: 0 | K40: 0 | L40: 1 | M40: 1 | N40: 0 | O40: 0 | P40: 5 | Q40: 503.33 | T40: 2516.65 | V40: 1006.66 | W40: 503.33 | X40: 0 | Y40: 0 | Z40: 0 | AA40: 503.33 | AB40: 503.33 | AC40: 0 | AD40: 0
B41: 112 | C41: BR0275057 | D41: 30.90.30-26 | E41: Parafuso, aço galvanizado, cabeça sextavada, 50 mm, 5/16 pol, rosca soberba | F41: UN | G41: 4000 | H41: 100 | I41: 100 | J41: 0 | K41: 50 | L41: 100 | M41: 100 | N41: 0 | O41: 0 | P41: 4450 | Q41: 0.5 | R41: 0.53 | S41: 0.3 | T41: 2225 | V41: 2000 | W41: 50 | X41: 50 | Y41: 0 | Z41: 25 | AA41: 50 | AB41: 50 | AC41: 0 | AD41: 0
B42: 113 | C42: BR0250703 | E42: Prego com cabeça, aço temperado, liso, liso, diamante, niquelado, 10 X 10 | F42: KG | G42: 2 | H42: 10 | I42: 5 | J42: 0 | K42: 5 | L42: 2 | M42: 3 | N42: 0 | O42: 0 | P42: 27 | Q42: 13.45 | T42: 363.15 | V42: 26.9 | W42: 134.5 | X42: 67.25 | Y42: 0 | Z42: 67.25 | AA42: 26.9 | AB42: 40.35 | AC42: 0 | AD42: 0
B43: 114 | C43: BR0317913 | D43: 30.90.30-26 | E43: Prego com cabeça, aço, chata, liso, c omum, 13 x 18 | F43: KG | G43: 5 | H43: 10 | I43: 5 | J43: 0 | K43: 5 | L43: 2 | M43: 3 | N43: 0 | O43: 0 | P43: 30 | Q43: 9 | R43: 8.79 | S43: 8.4 | T43: 270 | V43: 45 | W43: 90 | X43: 45 | Y43: 0 | Z43: 45 | AA43: 18 | AB43: 27 | AC43: 0 | AD43: 0
B44: 115 | C44: BR0330577 | D44: 30.90.30-26 | E44: Prego com cabeça, ferro comum, chata, liso, polido, 17 x 21 | F44: KG | G44: 5 | H44: 10 | I44: 5 | J44: 0 | K44: 5 | L44: 2 | M44: 3 | N44: 0 | O44: 0 | P44: 30 | Q44: 8.65 | R44: 8.32 | S44: 7.47 | T44: 259.5 | V44: 43.25 | W44: 86.5 | X44: 43.25 | Y44: 0 | Z44: 43.25 | AA44: 17.3 | AB44: 25.95 | AC44: 0 | AD44: 0
B45: 116 | C45: BR0330576 | D45: 30.90.30-26 | E45: Prego com cabeça, ferro comum, chata, liso, polido, 15 x 15 | F45: KG | G45: 5 | H45: 10 | I45: 5 | J45: 0 | K45: 5 | L45: 2 | M45: 3 | N45: 0 | O45: 0 | P45: 30 | Q45: 8.9 | R45: 7.5 | S45: 7.5 | T45: 267 | V45: 44.5 | W45: 89 | X45: 44.5 | Y45: 0 | Z45: 44.5 | AA45: 17.8 | AB45: 26.7 | AC45: 0 | AD45: 0
B46: 117 | C46: BR018384 | D46: 33.90-30-17 | E46: Solda para eletrônica (solda de estanho e chumbo) 60/40 com ponto de fusão de 183 °C, rolo com 500 g | F46: unid. | G46: 0 | H46: 0 | I46: 0 | J46: 1 | K46: 1 | L46: 5 | M46: 2 | N46: 0 | O46: 0 | P46: 9 | Q46: 82.33 | T46: 740.97 | V46: 0 | W46: 0 | X46: 0 | Y46: 82.33 | Z46: 82.33 | AA46: 411.65 | AB46: 164.66 | AC46: 0 | AD46: 0
B47: 118 | C47: BR0008907 | D47: 30.90.30-26 | E47: Trena de aço, 3/4'' de largura, 10m, graduação em milímetro e polegada, com trava de fixação, presilha para cinto e estojo em ABS | F47: UN | G47: 10 | H47: 4 | I47: 5 | J47: 2 | K47: 2 | L47: 2 | M47: 5 | N47: 0 | O47: 0 | P47: 30 | Q47: 49.53 | R47: 65.48 | S47: 27.21 | T47: 1485.9 | V47: 495.3 | W47: 198.12 | X47: 247.65 | Y47: 99.06 | Z47: 99.06 | AA47: 99.06 | AB47: 247.65 | AC47: 0 | AD47: 0
B48: 119 | C48: BR0234033 | D48: 30.90.30-26 | E48: Trena em fibra de vidro, estojo anatômico, com manivela dobrável, 50 (cinquenta) metros | F48: UN | G48: 2 | H48: 2 | I48: 0 | J48: 1 | K48: 1 | L48: 2 | M48: 5 | N48: 0 | O48: 0 | P48: 13 | Q48: 108 | R48: 154.6 | S48: 78.9 | T48: 1404 | V48: 216 | W48: 216 | X48: 0 | Y48: 108 | Z48: 108 | AA48: 216 | AB48: 540 | AC48: 0 | AD48: 0
B49: 120 | C49: BR0226313 | D49: 30.90.30-26 | E49: Verniz, acabamento brilhante, cor transparente, método aplicação pincel e pistola, aplicação interior e exterior, características adicionais secagem rápida (GALÃO 3,60 L) | F49: GALÃO 3,60 L | G49: 4 | H49: 10 | I49: 5 | J49: 0 | K49: 3 | L49: 2 | M49: 4 | N49: 0 | O49: 0 | P49: 28 | Q49: 100 | R49: 54 | S49: 54 | T49: 2800 | V49: 400 | W49: 1000 | X49: 500 | Y49: 0 | Z49: 300 | AA49: 200 | AB49: 400 | AC49: 0 | AD49: 0
B51: Total Geral | T51: =SUM(T14:T50) -> 53416.34 | V51: =SUM(V3:V50) -> 16239.01 | W51: 5964.86 | X51: 11247.2 | Y51: 4874.09 | Z51: 3069.67 | AA51: 7310.13 | AB51: 4711.38 | AC51: 0 | AD51: 0
AD53: =SUM(V51:AD51) -> 53416.34

Sheet Planilha IV - Novos Materiais
D4: MINISTÉRIO DA INTEGRAÇÃO NACIONAL - MI
D5: COMPANIHA DE DESENVOLVIMENTO DOS VALES DO SÃO FRANCISCO E DO PARNAÍBA - CODEVASF
D6: ÁREA DE GESTÃO ADMINISTRATIVA E DE SUPORTE LOGÍSTICO
D7: Gerência de Patrimônio, Materiais e Serviços Auxiliares
B9: Planilha IV
B10: Novos Material de Manutenção de Elétrica / Marcenaria / Ferramentas
B12: Unidade: CODEVASF
B13: Item | C13: Código CATMAT | D13: Natureza Despesa | E13: Descrição Sucinta | F13: Unid. | G13: SEDE Consumo Anual Estimado | H13: 1ª SR Consumo Anual Estimado | I13: 2ª SR Consumo Anual Estimado | J13: 3ª SR Consumo Anual Estimado | K13: 4ª SR Consumo Anual Estimado | L13: 5ª SR Consumo Anual Estimado | M13: 6ª SR Consumo Anual Estimado | N13: 7ª SR Consumo Anual Estimado | O13: 8ª SR Consumo Anual Estimado | P13: Consumo Anual Geral | Q13: Preço unitário máximo 2017 | R13: Preço unitário máximo 2015 | S13: Preço unitário REGISTRADO 2016 | T13: Valor Global | V13: SEDE Consumo Anual Estimado | W13: 1ª SR Consumo Anual Estimado | X13: 2ª SR Consumo Anual Estimado | Y13: 3ª SR Consumo Anual Estimado | Z13: 4ª SR Consumo Anual Estimado | AA13: 5ª SR Consumo Anual Estimado | AB13: 6ª SR Consumo Anual Estimado | AC13: 7ª SR Consumo Anual Estimado | AD13: 8ª SR Consumo Anual Estimado
B14: 121 | C14: BR0421088 | D14: 30.90.30-26 | E14: Filtro linha, 110/220 v, 6 tomadas padrão nbr14136, seleção automática de voltagem, proteção contra surtos rede energia e telefonia, 60 hz, novo padrão nbr 14136:2002, pintura eletrostática a pó, display contator surto elétrico; fusível térmico. | F14: Unid. | G14: 50 | H14: 0 | I14: 0 | J14: 0 | K14: 0 | L14: 0 | M14: 0 | N14: 100 | O14: 0 | P14: =SUM(G14:O14) -> 150 | Q14: 68.9 | T14: =P14*Q14 -> 10335 | V14: =Q14*G14 -> 3445 | W14: =H14*Q14 -> 0 | X14: =I14*Q14 -> 0 | Y14: =J14*Q14 -> 0 | Z14: =K14*Q14 -> 0 | AA14: =L14*Q14 -> 0 | AB14: =M14*Q14 -> 0 | AC14: =N14*Q14 -> 6890 | AD14: =O14*Q14 -> 0
B15: 122 | C15: BR0399271 | D15: 30.90.30-26 | E15: Luz emergência, fixa à parede, 30 lâmpadas de led de 3W, bivolt, recarregável, autonomia mínima de 12 horas, luz branca. Marca:equivalente ou superior àIntelbrás | F15: Unid. | G15: 40 | H15: 0 | I15: 0 | J15: 0 | K15: 0 | L15: 0 | M15: 0 | N15: 40 | O15: 0 | P15: 80 | Q15: 33.72 | T15: =P15*Q15 -> 2697.6 | V15: =Q15*G15 -> 1348.8 | W15: =H15*Q15 -> 0 | X15: =I15*Q15 -> 0 | Y15: =J15*Q15 -> 0 | Z15: =K15*Q15 -> 0 | AA15: =L15*Q15 -> 0 | AB15: =M15*Q15 -> 0 | AC15: =N15*Q15 -> 1348.8 | AD15: =O15*Q15 -> 0
B16: 123 | C16: BR00439278 | D16: 30.90.30-26 | E16: Lâmpada led, bivolt v, 50 w, e-27, 4500 lm, super led (alta potência), luz branca, vida útil mínima de 25000 horas. | F16: Unid. | G16: 50 | H16: 0 | I16: 0 | J16: 0 | K16: 0 | L16: 0 | M16: 0 | N16: 200 | O16: 0 | P16: 250 | Q16: 74.99 | T16: 18747.5 | V16: 3749.5 | W16: 0 | X16: 0 | Y16: 0 | Z16: 0 | AA16: 0 | AB16: 0 | AC16: 14998 | AD16: 0
B17: 124 | C17: BR0041599 | D17: 30.90.30-26 | E17: Quadro de distribuição em chapa de aço carbono pintada eletrostaticamente na cor branca ou marrom para no mínimo 40 módulos. | F17: Unid. | G17: 0 | H17: 0 | I17: 0 | J17: 0 | K17: 0 | L17: 0 | M17: 0 | N17: 2 | O17: 0 | P17: 2 | Q17: 183.99 | T17: 367.98 | V17: 0 | W17: 0 | X17: 0 | Y17: 0 | Z17: 0 | AA17: 0 | AB17: 0 | AC17: 367.98 | AD17: 0
B18: 125 | C18: BR0150260 | D18: 30.90.30-26 | E18: Luminária tipo arandela (vulgarmente denominada tartaruga), a prova de tempo, confeccionada em aço e Vidro. | F18: Unid. | G18: 0 | H18: 0 | I18: 0 | J18: 0 | K18: 0 | L18: 0 | M18: 0 | N18: 10 | O18: 0 | P18: 10 | Q18: 28.18 | T18: 281.8 | V18: 0 | W18: 0 | X18: 0 | Y18: 0 | Z18: 0 | AA18: 0 | AB18: 0 | AC18: 281.8 | AD18: 0
B19: 126 | C19: BR0377672 | D19: 30.90.30-26 | E19: Canaleta 32mm x 12,5 mm para uso em Sistema X. Com 2 Metros de comprimento Marca:equivalente ou superior à Pial Legrand. | F19: Unid. | G19: 100 | H19: 0 | I19: 0 | J19: 0 | K19: 0 | L19: 0 | M19: 0 | N19: 60 | O19: 0 | P19: 160 | Q19: 20 | T19: 3200 | V19: 2000 | W19: 0 | X19: 0 | Y19: 0 | Z19: 0 | AA19: 0 | AB19: 0 | AC19: 1200 | AD19: 0
B20: 127 | C20: BR0377672 | D20: 30.90.30-26 | E20: Canaleta 20mm x 10 mm para uso em Sistema X. Com 2 Metros de comprimento Marca:equivalente ou superior à Pial Legrand. | F20: Unid. | G20: 250 | H20: 0 | I20: 0 | J20: 0 | K20: 150 | L20: 0 | M20: 0 | N20: 60 | O20: 0 | P20: 460 | Q20: 13 | T20: 5980 | V20: 3250 | W20: 0 | X20: 0 | Y20: 0 | Z20: 1950 | AA20: 0 | AB20: 0 | AC20: 780 | AD20: 0
B21: 128 | C21: BR0377672 | D21: 30.90.30-26 | E21: Canaleta 50mm x 20 mm para uso em Sistema X. Com 2 Metros de comprimento Marca:equivalente ou superior à Pial Legrand. | F21: Unid. | G21: 0 | H21: 0 | I21: 0 | J21: 0 | K21: 0 | L21: 0 | M21: 0 | N21: 60 | O21: 0 | P21: 60 | Q21: 46.9 | T21: 2814 | V21: 0 | W21: 0 | X21: 0 | Y21: 0 | Z21: 0 | AA21: 0 | AB21: 0 | AC21: 2814 | AD21: 0
B22: 129 | C22: BR0377672 | D22: 30.90.30-26 | E22: Canaleta 110mm x 20 mm para uso em Sistema X. Com 2 Metros de comprimento Marca:equivalente ou superior à Pial Legrand. | F22: Unid. | G22: 0 | H22: 0 | I22: 0 | J22: 0 | K22: 0 | L22: 0 | M22: 0 | N22: 60 | O22: 0 | P22: =SUM(G22:O22) -> 60 | Q22: 79.9 | T22: 4794 | V22: 0 | W22: 0 | X22: 0 | Y22: 0 | Z22: 0 | AA22: 0 | AB22: 0 | AC22: 4794 | AD22: 0
B23: 130 | C23: BR0231486 | D23: 30.90.30-26 | E23: Cotovelo de 90º 20mm x 10mm para uso em Sistema X. Marca: equivalente ou superior à Pial Legrand. | F23: Unid. | G23: 0 | H23: 0 | I23: 0 | J23: 0 | K23: 30 | L23: 0 | M23: 0 | N23: 60 | O23: 0 | P23: 90 | Q23: 2.35 | T23: 211.5 | V23: 0 | W23: 0 | X23: 0 | Y23: 0 | Z23: 70.5 | AA23: 0 | AB23: 0 | AC23: 141 | AD23: 0
B24: 131 | C24: BR0231499 | D24: 30.90.30-26 | E24: Cotovelo interno 20mm x 10mm para uso em Sistema X. Marca:equivalente ou superior à Pial Legrand. | F24: Unid. | G24: 200 | H24: 0 | I24: 0 | J24: 0 | K24: 15 | L24: 0 | M24: 0 | N24: 60 | O24: 0 | P24: 275 | Q24: 2.35 | T24: 646.25 | V24: 470 | W24: 0 | X24: 0 | Y24: 0 | Z24: 35.25 | AA24: 0 | AB24: 0 | AC24: 141 | AD24: 0
B25: 132 | C25: BR0411269 | D25: 30.90.30-26 | E25: Acoplador 20mm x 10mm para uso em Sistema X. Marca:equivalente ou superior à Pial Legrand. | F25: Unid. | G25: 200 | H25: 0 | I25: 0 | J25: 0 | K25: 0 | L25: 0 | M25: 0 | N25: 60 | O25: 0 | P25: 260 | Q25: 5.39 | T25: 1401.4 | V25: 1078 | W25: 0 | X25: 0 | Y25: 0 | Z25: 0 | AA25: 0 | AB25: 0 | AC25: 323.4 | AD25: 0
B26: 133 | C26: BR0344875 | D26: 30.90.30-26 | E26: Luva 20mm x 10mm para uso em Sistema X. Marca:equivalente ou superior à Pial Legrand. | F26: Unid. | G26: 200 | H26: 0 | I26: 0 | J26: 0 | K26: 30 | L26: 0 | M26: 0 | N26: 60 | O26: 0 | P26: 290 | Q26: 2.69 | T26: 780.1 | V26: 538 | W26: 0 | X26: 0 | Y26: 0 | Z26: 80.7 | AA26: 0 | AB26: 0 | AC26: 161.4 | AD26: 0
B27: 134 | C27: BR0231487 | D27: 30.90.30-26 | E27: Derivação em T 20mm x 10mm para uso em Sistema X. Marca:equivalente ou superior à Pial Legrand. | F27: Unid. | G27: 200 | H27: 0 | I27: 0 | J27: 0 | K27: 20 | L27: 0 | M27: 0 | N27: 60 | O27: 0 | P27: 280 | Q27: 13.28 | T27: 3718.4 | V27: 2656 | W27: 0 | X27: 0 | Y27: 0 | Z27: 265.6 | AA27: 0 | AB27: 0 | AC27: 796.8 | AD27: 0
B28: 135 | C28: BR0424421 | D28: 30.90.30-26 | E28: Protetor contra surto de tensão, 175 vca, 25 ka, anti-chama, abnt 5410 e 5419, 40 até 80 °c, plástico injetado em nylon | F28: Unid. | G28: 0 | H28: 0 | I28: 0 | J28: 0 | K28: 0 | L28: 0 | M28: 0 | N28: 150 | O28: 0 | P28: 150 | Q28: 69.9 | T28: 10485 | V28: 0 | W28: 0 | X28: 0 | Y28: 0 | Z28: 0 | AA28: 0 | AB28: 0 | AC28: 10485 | AD28: 0
B29: 136 | C29: BR0426191 | D29: 30.90.30-26 | E29: Protetor contra surto de tensão, 275 v, 15 ka, ip20 | F29: Unid. | G29: 0 | H29: 0 | I29: 0 | J29: 0 | K29: 0 | L29: 0 | M29: 0 | N29: 20 | O29: 0 | P29: 20 | Q29: 33.32 | T29: 666.4 | V29: 0 | W29: 0 | X29: 0 | Y29: 0 | Z29: 0 | AA29: 0 | AB29: 0 | AC29: 666.4 | AD29: 0
B30: 137 | C30: BR0434161 | D30: 30.90.30-26 | E30: Refletor, alumínio blindado, led cob (chip on board), 100 w, bivolt v, IP65 (tabela ingress protection), 12 °, 6000/4000 k | F30: Unid. | G30: 0 | H30: 0 | I30: 0 | J30: 0 | K30: 0 | L30: 0 | M30: 0 | N30: 10 | O30: 0 | P30: 10 | Q30: 182.49 | T30: 1824.9 | V30: 0 | W30: 0 | X30: 0 | Y30: 0 | Z30: 0 | AA30: 0 | AB30: 0 | AC30: 1824.9 | AD30: 0
B31: 138 | C31: BR0064831 | D31: 30.90.30-26 | E31: Reator eletrônico, para lâmpada fluorescente HO (HIGH OUTPUT), 1 X 110 W, 110/220 V, em conformidade com as normas (NBR nº 14417 e 14418) | F31: Unid. | G31: 180 | H31: 0 | I31: 0 | J31: 0 | K31: 0 | L31: 0 | M31: 0 | N31: 0 | O31: 0 | P31: =SUM(G31:O31) -> 180 | Q31: 63.8 | T31: =P31*Q31 -> 11484 | V31: 11484 | W31: 0 | X31: 0 | Y31: 0 | Z31: 0 | AA31: 0 | AB31: 0 | AC31: 0 | AD31: 0
B32: 139 | C32: BR0064831 | D32: 30.90.30-26 | E32: Reator lâmpada, 1 un, 40 w, 110/220 volt, lâmpadas fluorescente, partida rápida | F32: Unid. | G32: 100 | H32: 0 | I32: 0 | J32: 0 | K32: 0 | L32: 0 | M32: 0 | N32: 0 | O32: 0 | P32: =SUM(G32:O32) -> 100 | Q32: 63.8 | T32: 6380 | V32: 6380 | W32: 0 | X32: 0 | Y32: 0 | Z32: 0 | AA32: 0 | AB32: 0 | AC32: 0 | AD32: 0
B33: 140 | C33: BR0434160 | D33: 30.90.30-26 | E33: Refletor, Alumínio blindado, LED COB (CHIP ON BOARD), 50 W, bivolt, IP65 (Tabela ingress protection), 120°, 6000/4000 K | F33: Unid. | G33: 50 | H33: 0 | I33: 0 | J33: 0 | K33: 0 | L33: 0 | M33: 0 | N33: 0 | O33: 0 | P33: =SUM(G33:O33) -> 50 | Q33: 131 | T33: 6550 | V33: 6550 | W33: 0 | X33: 0 | Y33: 0 | Z33: 0 | AA33: 0 | AB33: 0 | AC33: 0 | AD33: 0
B34: 141 | C34: BR0231471 | E34: Argamassa, cimento, calcário e aditivos, cinza, rejunte de placas cerâmicas em pisos e paredes Saco com 20 kg Marca: equivalente ou superior à Quartzolit | F34: Saco com 20 KG | G34: 10 | H34: 0 | I34: 0 | J34: 0 | K34: 0 | L34: 0 | M34: 0 | N34: 0 | O34: 0 | P34: =SUM(G34:O34) -> 10 | Q34: 53 | T34: 530 | V34: 530 | W34: 0 | X34: 0 | Y34: 0 | Z34: 0 | AA34: 0 | AB34: 0 | AC34: 0 | AD34: 0
B35: 142 | C35: BR0409523 | D35: 30.90.30-26 | E35: Cabo elétrico flexível, 750 v, pp, mole, 3 x 4 mm2, cobre, pvc anti-chama, pvc, de conformidade INMETRO, norma aplicável NBR 13249 Bobina com 500 metros Marca: equivalente ou superior à Pirelli. | F35: Metros | G35: 1000 | H35: 0 | I35: 0 | J35: 0 | K35: 0 | L35: 0 | M35: 0 | N35: 0 | O35: 0 | P35: =SUM(G35:O35) -> 1000 | Q35: 10.16 | T35: 10160 | V35: 10160 | W35: 0 | X35: 0 | Y35: 0 | Z35: 0 | AA35: 0 | AB35: 0 | AC35: 0 | AD35: 0
B36: 143 | C36: BR0429945 | E36: Válvula de mictório sensor embutir, inox polido, elétrico 110/220V – 12Vcc, regulador de vazão 6 litros/min | F36: Unid. | G36: 10 | H36: 0 | I36: 0 | J36: 0 | K36: 0 | L36: 0 | M36: 0 | N36: 0 | O36: 0 | P36: 10 | Q36: 599.9 | T36: 5999 | V36: 5999 | W36: 0 | X36: 0 | Y36: 0 | Z36: 0 | AA36: 0 | AB36: 0 | AC36: 0 | AD36: 0
B37: 144 | C37: BR0126772 | E37: Alicate amperímetro, material plástico, tipo digital, corrente 0.1 a 1.000A, voltagem 1 a 600V AC/ DC 1 a 1000V, alimentação a bateria 9V, resistência 40, aplicação eletricidade, características adicionais data hold, beep de continuidade e display lcd 3 1/2. | F37: Unid. | G37: 1 | H37: 0 | I37: 0 | J37: 0 | K37: 2 | L37: 0 | M37: 0 | N37: 0 | O37: 0 | P37: 3 | Q37: 648.71 | T37: 1946.13 | V37: 648.71 | W37: 0 | X37: 0 | Y37: 0 | Z37: 1297.42 | AA37: 0 | AB37: 0 | AC37: 0 | AD37: 0
B38: 145 | C38: BR0379354 | E38: Detector de tensão de 90 a 1000 V AC, de bolso, tipo "caneta" aplicação eletricidade, detecta o campo electrostático estável produzido pela tensão AC através do isola-mento, sem ser necessário contacto com o condutor desprotegido, ponta indica a presença de tensão por ilmuminação e beep, alimentado por 2 pilhas AAA, em conformidade com as normas IEC 61010-1:2001, UL 61010-1 (2.ª ed.), CAN/CSA-C22.2 N.º 61010-1-04, e ISA-82.02.01 Grau de Poluição 2, IEC 61326-1:2006 | F38: Unid. | G38: 0 | H38: 0 | I38: 0 | J38: 0 | K38: 3 | L38: 0 | M38: 0 | N38: 0 | O38: 0 | P38: 3 | Q38: 119.99 | T38: 359.97 | V38: 0 | W38: 0 | X38: 0 | Y38: 0 | Z38: 359.97 | AA38: 0 | AB38: 0 | AC38: 0 | AD38: 0
B39: 146 | C39: BR0231488 | E39: Tampa de extremidade sistema X, medindo 20mm X 10mm e fabricado em termoplástico na cor branco | F39: Unid. | G39: 100 | H39: 0 | I39: 0 | J39: 0 | K39: 25 | L39: 0 | M39: 0 | N39: 0 | O39: 0 | P39: 125 | Q39: 3 | T39: 375 | V39: 300 | W39: 0 | X39: 0 | Y39: 0 | Z39: 75 | AA39: 0 | AB39: 0 | AC39: 0 | AD39: 0
B40: 147 | C40: BR0231499 | E40: Cotovelo externo sistema X, medindo 20mm x 10mm e fabricado em ter-moplástico na cor branca | F40: Unid. | G40: 100 | H40: 0 | I40: 0 | J40: 0 | K40: 10 | L40: 0 | M40: 0 | N40: 0 | O40: 0 | P40: 110 | Q40: 1.74 | T40: 191.4 | V40: 174 | W40: 0 | X40: 0 | Y40: 0 | Z40: 17.4 | AA40: 0 | AB40: 0 | AC40: 0 | AD40: 0
G41: 0 | H41: 0 | I41: 0 | J41: 0 | K41: 0 | L41: 0 | M41: 0 | N41: 0 | O41: 0 | P41: 0 | Q41: 0 | T41: 0 | V41: 0 | W41: 0 | X41: 0 | Y41: 0 | Z41: 0 | AA41: 0 | AB41: 0 | AC41: 0 | AD41: 0
G42: 0 | H42: 0 | I42: 0 | J42: 0 | K42: 0 | L42: 0 | M42: 0 | N42: 0 | O42: 0 | P42: 0 | Q42: 0 | T42: 0 | V42: 0 | W42: 0 | X42: 0 | Y42: 0 | Z42: 0 | AA42: 0 | AB42: 0 | AC42: 0 | AD42: 0
G43: 0 | H43: 0 | I43: 0 | J43: 0 | K43: 0 | L43: 0 | M43: 0 | N43: 0 | O43: 0 | P43: =SUM(G43:O43) -> 0 | Q43: 0 | T43: 0 | V43: 0 | W43: 0 | X43: 0 | Y43: 0 | Z43: 0 | AA43: 0 | AB43: 0 | AC43: 0 | AD43: 0
G44: 0 | H44: 0 | I44: 0 | J44: 0 | K44: 0 | L44: 0 | M44: 0 | N44: 0 | O44: 0 | P44: 0 | Q44: 0 | T44: 0 | V44: 0 | W44: 0 | X44: 0 | Y44: 0 | Z44: 0 | AA44: 0 | AB44: 0 | AC44: 0 | AD44: 0
G45: 0 | H45: 0 | I45: 0 | J45: 0 | K45: 0 | L45: 0 | M45: 0 | N45: 0 | O45: 0 | P45: 0 | Q45: 0 | T45: 0 | V45: 0 | W45: 0 | X45: 0 | Y45: 0 | Z45: 0 | AA45: 0 | AB45: 0 | AC45: 0 | AD45: 0
G46: 0 | H46: 0 | I46: 0 | J46: 0 | K46: 0 | L46: 0 | M46: 0 | N46: 0 | O46: 0 | P46: 0 | Q46: 0 | T46: 0 | V46: 0 | W46: 0 | X46: 0 | Y46: 0 | Z46: 0 | AA46: 0 | AB46: 0 | AC46: 0 | AD46: 0
G47: 0 | H47: 0 | I47: 0 | J47: 0 | K47: 0 | L47: 0 | M47: 0 | N47: 0 | O47: 0 | P47: 0 | Q47: 0 | T47: 0 | V47: 0 | W47: 0 | X47: 0 | Y47: 0 | Z47: 0 | AA47: 0 | AB47: 0 | AC47: 0 | AD47: 0
G48: 0 | H48: 0 | I48: 0 | J48: 0 | K48: 0 | L48: 0 | M48: 0 | N48: 0 | O48: 0 | P48: 0 | Q48: 0 | T48: 0 | V48: 0 | W48: 0 | X48: 0 | Y48: 0 | Z48: 0 | AA48: 0 | AB48: 0 | AC48: 0 | AD48: 0
G49: 0 | H49: 0 | I49: 0 | J49: 0 | K49: 0 | L49: 0 | M49: 0 | N49: 0 | O49: 0 | P49: 0 | Q49: 0 | T49: 0 | V49: 0 | W49: 0 | X49: 0 | Y49: 0 | Z49: 0 | AA49: 0 | AB49: 0 | AC49: 0 | AD49: 0
B51: Total Geral | T51: =SUM(T14:T50) -> 112927.33 | V51: =SUM(V3:V50) -> 60761.01 | W51: 0 | X51: 0 | Y51: 0 | Z51: 4151.84 | AA51: 0 | AB51: 0 | AC51: 48014.48 | AD51: 0
V52: =SUM(V51:AD51) -> 112927.33

Sheet Total Estimado
C2: MINISTÉRIO DA INTEGRAÇÃO NACIONAL - MI
C3: COMPANIHA DE DESENVOL. DOS VALES DO SÃO FRANCISCO E DO PARNAÍBA - CODEVASF
C4: ÁREA DE GESTÃO ADMINISTRATIVA E DE SUPORTE LOGÍSTICO
C5: Gerência de Patrimônio, Materiais e Serviços Auxiliares
B7: Unidades Responsáveis | C7: Composição | E7: Valores
B8: AA/GSA/UPM | C8: PLANILHA I | D8: Material de Manutenção Elétrica | E8: ='Planilha I - Eletrico'!$V$62 -> 328171.34
C9: PLANILHA II | D9: Material de Manutenção Hidráulica | E9: ='Planilha II - Hidráulico'!$V$52 -> 64706.15
C10: PLANILHA III | D10: Material de Manutenção de Marcenaria / Ferramentas | E10: ='Planilha III - Macenaria-Ferram'!$V$51 -> 16239.01
C11: PLANILHA IV | D11: Novos Material de Manutenção de Elétrica / Marcenaria / Ferramentas | E11: ='Planilha IV - Novos Materiais'!$V$51 -> 60761.01
B12: Valor Estimado | E12: =SUM(E8:E11) -> 469877.51 | G12: =E12 -> 469877.51
B14: 1ª/GRA/USA | C14: PLANILHA I | D14: Material de Manutenção Elétrica | E14: ='Planilha I - Eletrico'!$W$62 -> 66970.56
C15: PLANILHA II | D15: Material de Manutenção Hidráulica | E15: ='Planilha II - Hidráulico'!$W$52 -> 7185.8
C16: PLANILHA III | D16: Material de Manutenção de Marcenaria / Ferramentas | E16: ='Planilha III - Macenaria-Ferram'!$W$51 -> 5964.86
C17: PLANILHA IV | D17: Novos Material de Manutenção de Elétrica / Marcenaria / Ferramentas | E17: ='Planilha IV - Novos Materiais'!$W$51 -> 0
B18: Valor Estimado | E18: =SUM(E14:E17) -> 80121.22 | G18: =E18 -> 80121.22
B20: 2ª/GRA/USA | C20: PLANILHA I | D20: Material de Manutenção Elétrica | E20: ='Planilha I - Eletrico'!$X$62 -> 46333.69
C21: PLANILHA II | D21: Material de Manutenção Hidráulica | E21: ='Planilha II - Hidráulico'!$X$52 -> 24616.05
C22: PLANILHA III | D22: Material de Manutenção de Marcenaria / Ferramentas | E22: ='Planilha III - Macenaria-Ferram'!$X$51 -> 11247.2
C23: PLANILHA IV | D23: Novos Material de Manutenção de Elétrica / Marcenaria / Ferramentas | E23: ='Planilha IV - Novos Materiais'!$X$51 -> 0
B24: Valor Estimado | E24: =SUM(E20:E23) -> 82196.94 | G24: =E24 -> 82196.94
B26: 3ª/GRA/USA | C26: PLANILHA I | D26: Material de Manutenção Elétrica | E26: ='Planilha I - Eletrico'!$Y$62 -> 24535.49
C27: PLANILHA II | D27: Material de Manutenção Hidráulica | E27: ='Planilha II - Hidráulico'!$Y$52 -> 1792.94
C28: PLANILHA III | D28: Material de Manutenção de Marcenaria / Ferramentas | E28: ='Planilha III - Macenaria-Ferram'!$Y$51 -> 4874.09
C29: PLANILHA IV | D29: Novos Material de Manutenção de Elétrica / Marcenaria / Ferramentas | E29: ='Planilha IV - Novos Materiais'!$Y$51 -> 0
B30: Valor Estimado | E30: =SUM(E26:E29) -> 31202.52 | G30: =E30 -> 31202.52
B32: 4ª/GRA/USA | C32: PLANILHA I | D32: Material de Manutenção Elétrica | E32: ='Planilha I - Eletrico'!$Z$62 -> 26372.21
C33: PLANILHA II | D33: Material de Manutenção Hidráulica | E33: ='Planilha II - Hidráulico'!$Z$52 -> 9070.43
C34: PLANILHA III | D34: Material de Manutenção de Marcenaria / Ferramentas | E34: ='Planilha III - Macenaria-Ferram'!$Z$51 -> 3069.67
C35: PLANILHA IV | D35: Novos Material de Manutenção de Elétrica / Marcenaria / Ferramentas | E35: ='Planilha IV - Novos Materiais'!$Z$51 -> 4151.84
B36: Valor Estimado | E36: =SUM(E32:E35) -> 42664.15 | G36: =E36 -> 42664.15
B38: 5ª/GRA/USA | C38: PLANILHA I | D38: Material de Manutenção Elétrica | E38: ='Planilha I - Eletrico'!$AA$62 -> 71766.4
C39: PLANILHA II | D39: Material de Manutenção Hidráulica | E39: ='Planilha II - Hidráulico'!$AA$52 -> 5565.18
C40: PLANILHA III | D40: Material de Manutenção de Marcenaria / Ferramentas | E40: ='Planilha III - Macenaria-Ferram'!$AA$51 -> 7310.13
C41: PLANILHA IV | D41: Novos Material de Manutenção de Elétrica / Marcenaria / Ferramentas | E41: ='Planilha IV - Novos Materiais'!$AA$51 -> 0
B42: Valor Estimado | E42: =SUM(E38:E41) -> 84641.71 | G42: =E42 -> 84641.71
B44: 6ª/GRA/USA | C44: PLANILHA I | D44: Material de Manutenção Elétrica | E44: ='Planilha I - Eletrico'!$AB$62 -> 34895.77
C45: PLANILHA II | D45: Material de Manutenção Hidráulica | E45: ='Planilha II - Hidráulico'!$AB$52 -> 12272.37
C46: PLANILHA III | D46: Material de Manut. de Marcenaria / Ferramentas | E46: ='Planilha III - Macenaria-Ferram'!$AB$51 -> 4711.38
C47: PLANILHA IV | D47: Novos Material de Manutenção de Elétrica / Marcenaria / Ferramentas | E47: ='Planilha IV - Novos Materiais'!$AB$51 -> 0
B48: Valor Estimado | E48: =SUM(E44:E47) -> 51879.52 | G48: =E48 -> 51879.52
B50: 7ª/GRA/USA | C50: PLANILHA I | D50: Material de Manutenção Elétrica | E50: ='Planilha I - Eletrico'!$AC$62 -> 98170.6
C51: PLANILHA II | D51: Material de Manutenção Hidráulica | E51: ='Planilha II - Hidráulico'!$AC$52 -> 35271.7
C52: PLANILHA III | D52: Material de Manut. de Marcenaria / Ferramentas | E52: ='Planilha III - Macenaria-Ferram'!$AC$51 -> 0
C53: PLANILHA IV | D53: Novos Material de Manutenção de Elétrica / Marcenaria / Ferramentas | E53: ='Planilha IV - Novos Materiais'!$AC$51 -> 48014.48
B54: Valor Estimado | E54: =SUM(E50:E53) -> 181456.78 | G54: =E54 -> 181456.78
B56: 8ª/GRA/USA | C56: PLANILHA I | D56: Material de Manutenção Elétrica | E56: ='Planilha I - Eletrico'!$AD$62 -> 0
C57: PLANILHA II | D57: Material de Manutenção Hidráulica | E57: ='Planilha II - Hidráulico'!$AD$52 -> 0
C58: PLANILHA III | D58: Material de Manut. de Marcenaria / Ferramentas | E58: ='Planilha III - Macenaria-Ferram'!$AD$51 -> 0
C59: PLANILHA IV | D59: Novos Material de Manut. de Elétrica / Marcenaria / Ferramentas | E59: ='Planilha IV - Novos Materiais'!$AD$51 -> 0
B60: Valor Estimado | E60: =SUM(E56:E59) -> 0 | G60: =E60 -> 0
B63: Valor Global Estimado | E63: =SUM(G8:G60) -> 1024040.35 | G63: =SUM(G8:G62) -> 1024040.35
B66: Em conformidade com o Decreto Nº 7.892, de 23 de Janeiro de 2013, Art.7º, inciso § 2o :
B68: “Na licitação para registro de preços não é necessário indicar a dotação orçamentária, que somente será exigida para a formalização do contrato ou outro instrumento hábil.”

Sheet Total Estimado 2
C3: MINISTÉRIO DA INTEGRAÇÃO NACIONAL - MI
C4: COMPANIHA DE DESENVOL. DOS VALES DO SÃO FRANCISCO E DO PARNAÍBA - CODEVASF
C5: ÁREA DE GESTÃO ADMINISTRATIVA E DE SUPORTE LOGÍSTICO
C6: Gerência de Patrimônio, Materiais e Serviços Auxiliares
B10: Composição | D10: Setor Responsável | E10: Valores
B11: PLANILHA I | C11: Material de Manutenção Elétrica | D11: Sede e SR´s | E11: ='Planilha I - Eletrico'!$T$62 -> 697216.06
B12: PLANILHA II | C12: Material de Manutenção Hidráulica | D12: Sede e SR´s | E12: ='Planilha II - Hidráulico'!$T$52 -> 160480.62
B13: PLANILHA III | C13: Material de Manutenção de Marcenaria | D13: Sede e SR´s | E13: ='Planilha III - Macenaria-Ferram'!$T$51 -> 53416.34
B14: PLANILHA IV | C14: Novos Material de Manutenção de Elétrica / Marcenaria / Ferramentas | D14: Sede e SR´s | E14: ='Planilha IV - Novos Materiais'!$T$51 -> 112927.33
B16: Valor Global Estimado | E16: =SUM(E11:E15) -> 1024040.35
B20: Em conformidade com o Decreto Nº 7.892, de 23 de Janeiro de 2013, Art.7º, inciso § 2o :
B25: “Na licitação para registro de preços não é necessário indicar a dotação orçamentária, que somente será exigida para a formalização do contrato ou outro instrumento hábil.”
